Department,Entity,Posted Date,Internal Voucher Number, Invoice Line Amount GBP ,Supplier Name,Account Code
FCO,FCO,28/04/2021,11171496,"72,255,965.58",UNITED NATIONS,Programme Spend (Oracle Projects Control Account)
FCO,FCO,22/04/2021,11165299,"13,146,595.68",UNITED NATIONS,Programme Spend (Oracle Projects Control Account)
FCO,FCO,22/04/2021,11165310,"13,000,164.09",UNITED NATIONS,Programme Spend (Oracle Projects Control Account)
FCO,FCO,29/04/2021,11172534,"11,834,226.95",UNITED NATIONS,Programme Spend (Oracle Projects Control Account)
FCO,FCO,22/04/2021,11165326,"10,405,624.27",UNITED NATIONS,Programme Spend (Oracle Projects Control Account)
FCO,FCO,28/04/2021,11171187,"10,100,000.00",THE BRITISH COUNCIL,Programme Spend (Oracle Projects Control Account)
FCO,FCO,16/04/2021,11159767,"7,378,480.00",BBC BRITISH BROADCASTING CORPORATION,Programme Spend (Oracle Projects Control Account)
FCO,FCO,23/04/2021,11166825,"6,124,704.64",UNITED NATIONS,Programme Spend (Oracle Projects Control Account)
FCO,FCO,23/04/2021,11166837,"5,238,909.71",UNITED NATIONS,Programme Spend (Oracle Projects Control Account)
FCO,FCO,22/04/2021,11165343,"4,191,552.65",UNITED NATIONS,Programme Spend (Oracle Projects Control Account)
FCO,FCO,12/04/2021,11153998,"4,142,783.25",Montagu Evans LLP,Multiple Accounts
FCO,FCO,01/04/2021,11162907,"4,057,308.14",THE ROYAL BANK OF SCOTLAND,GPC Clearing Account
FCO,FCO,27/04/2021,11170195,"3,050,688.15",ORGANIZATION FOR SECURITY AND CO-OPERATION IN EUROPE,Programme Spend (Oracle Projects Control Account)
FCO,FCO,06/04/2021,11143851,"2,998,527.99",FCDO POSTS,Funding Overseas Posts
FCO,FCO,28/04/2021,11171237,"2,787,632.84",FLIGHT CENTRE UK,Inward visits to the UK and UK Conferences
FCO,FCO,23/04/2021,11166790,"2,773,705.79",GRUNLEY CONSTRUCTION CO INC,Additions-Assets Under Construction (Oracle PA Control Account)
FCO,FCO,22/04/2021,11165376,"2,277,773.48",UNITED NATIONS,Programme Spend (Oracle Projects Control Account)
FCO,FCO,26/04/2021,11168223,"1,907,855.85",GW CONSULTING UK LTD,UK Guarding Contracts Overseas
FCO,FCO,09/04/2021,11151854,"1,896,903.11",EUROPEAN BANK FOR RECONSTRUCTION AND DEVELOPMENT,Protocol - General VAT Refunds to Other Organisations
FCO,FCO,14/04/2021,11157607,"1,800,000.00",THE ASSOCIATION OF COMMONWEALTH UNIVERSITIES,Programme Spend (Oracle Projects Control Account)
FCO,FCO,09/04/2021,11151845,"1,698,831.49",EUROPEAN BANK FOR RECONSTRUCTION AND DEVELOPMENT,Protocol - General VAT Refunds to Other Organisations
FCO,FCO,09/04/2021,11151838,"1,618,843.45",EUROPEAN BANK FOR RECONSTRUCTION AND DEVELOPMENT,Protocol - General VAT Refunds to Other Organisations
FCO,FCO,06/04/2021,11143644,"1,604,434.07",FCDO POSTS,Funding Overseas Posts
FCO,FCO,09/04/2021,11151832,"1,506,881.55",EUROPEAN BANK FOR RECONSTRUCTION AND DEVELOPMENT,Protocol - General VAT Refunds to Other Organisations
FCO,FCO,22/04/2021,11165363,"1,468,079.05",UNITED NATIONS,Programme Spend (Oracle Projects Control Account)
FCO,FCO,09/04/2021,11151853,"1,453,046.56",EUROPEAN BANK FOR RECONSTRUCTION AND DEVELOPMENT,Protocol - General VAT Refunds to Other Organisations
FCO,FCO,06/04/2021,11143664,"1,441,292.30",FCDO POSTS,Funding Overseas Posts
FCO,FCO,06/04/2021,11143834,"1,420,746.22",FCDO POSTS,Funding Overseas Posts
FCO,FCO,09/04/2021,11151841,"1,370,574.94",EUROPEAN BANK FOR RECONSTRUCTION AND DEVELOPMENT,Protocol - General VAT Refunds to Other Organisations
FCO,FCO,09/04/2021,11151849,"1,332,421.64",EUROPEAN BANK FOR RECONSTRUCTION AND DEVELOPMENT,Protocol - General VAT Refunds to Other Organisations
FCO,FCO,15/04/2021,11158612,"1,270,420.07",FCDO POSTS,Funding Overseas Posts
FCO,FCO,09/04/2021,11151843,"1,200,716.46",EUROPEAN BANK FOR RECONSTRUCTION AND DEVELOPMENT,Protocol - General VAT Refunds to Other Organisations
FCO,FCO,09/04/2021,11151847,"1,142,879.53",EUROPEAN BANK FOR RECONSTRUCTION AND DEVELOPMENT,Protocol - General VAT Refunds to Other Organisations
FCO,FCO,19/04/2021,11161265,"1,141,337.49",ISS FACILITY SERVICES LTD FCO OP,Multiple Accounts
FCO,FCO,09/04/2021,11151824,"1,138,037.89",EUROPEAN BANK FOR RECONSTRUCTION AND DEVELOPMENT,Protocol - General VAT Refunds to Other Organisations
FCO,FCO,06/04/2021,11143657,"1,131,839.99",FCDO POSTS,Funding Overseas Posts
FCO,FCO,07/04/2021,11148060,"1,123,821.26",SIREN ASSOCIATES LTD,Programme Spend (Oracle Projects Control Account)
FCO,FCO,12/04/2021,11153992,"1,115,870.00",Montagu Evans LLP,Multiple Accounts
FCO,FCO,30/04/2021,11174042,"1,105,000.00",UNITED NATIONS,Programme Spend (Oracle Projects Control Account)
FCO,FCO,06/04/2021,11143606,"1,093,352.34",GW CONSULTING UK LTD,UK Mobile Guarding Contract overseas
FCO,FCO,15/04/2021,11158589,"1,084,186.98",ERNST AND YOUNG LLP,Programme Spend (Oracle Projects Control Account)
FCO,FCO,14/04/2021,11157111,"1,050,000.00",JLL PROPERTY CONSULTANTS PTE LTD POE,FMCU POE Trust Account Debtor
FCO,FCO,09/04/2021,11151153,"1,038,011.19",RISK ADVISORY GROUP GS LTD,Programme Spend (Oracle Projects Control Account)
FCO,FCO,09/04/2021,11151846,"993,441.26",EUROPEAN BANK FOR RECONSTRUCTION AND DEVELOPMENT,Protocol - General VAT Refunds to Other Organisations
FCO,FCO,06/04/2021,11143822,"978,280.17",FCDO POSTS,Funding Overseas Posts
FCO,FCO,06/04/2021,11143594,"892,615.47",FCDO SERVICES,Construction Project more than 10k
FCO,FCO,06/04/2021,11143816,"884,153.92",FCDO POSTS,Funding Overseas Posts
FCO,FCO,14/04/2021,11157326,"869,678.00",SCOTTISH EVENTS CAMPUS,Inward visits to the UK and UK Conferences
FCO,FCO,06/04/2021,11143830,"868,077.81",FCDO POSTS,Funding Overseas Posts
FCO,FCO,01/04/2021,11159546,"809,181.63",THE ROYAL BANK OF SCOTLAND,Travel Package Advance Overseas Posting (Credit Card Payments Only)
FCO,FCO,30/04/2021,11173938,"800,000.00",BIDWELLS,Dilapidations Non-Residential
FCO,FCO,01/04/2021,11158985,"737,927.73",THE ROYAL BANK OF SCOTLAND,Corporate Credit Card Clearing Account
FCO,FCO,06/04/2021,11144171,"725,831.00",COMPUTACENTER UK LTD,IT Support
FCO,FCO,22/04/2021,11165390,"692,936.84",UNITED NATIONS,Programme Spend (Oracle Projects Control Account)
FCO,FCO,26/04/2021,11168173,"691,608.95",SECUREX AGENCIES LTD,Multiple Accounts
FCO,FCO,13/04/2021,11155579,"685,348.51",ISS FACILITY SERVICES LTD FCO OP - POE,Multiple Accounts
FCO,FCO,21/04/2021,11163450,"661,175.82",FCDO POSTS,Inter Account Transfer (Cash in Transit)
FCO,FCO,06/04/2021,11143665,"660,005.83",FCDO POSTS,Funding Overseas Posts
FCO,FCO,23/04/2021,11166726,"659,609.69",CABINET OFFICE,Programme Spend (Oracle Projects Control Account)
FCO,FCO,20/04/2021,11162657,"648,498.50",THE BRITISH COUNCIL,Programme Spend (Oracle Projects Control Account)
FCO,FCO,06/04/2021,11143663,"627,187.86",FCDO POSTS,Funding Overseas Posts
FCO,FCO,22/04/2021,11165686,"621,289.38",UNITED NATIONS,Programme Spend (Oracle Projects Control Account)
FCO,FCO,06/04/2021,11143817,"620,603.83",FCDO POSTS,Funding Overseas Posts
FCO,FCO,30/04/2021,11173631,"587,140.31",UNDP CONTRIBUTIONS,Programme Spend (Oracle Projects Control Account)
FCO,FCO,06/04/2021,11144160,"583,781.06",ARTEOS GP LIMITED AND CO KG,Multiple Accounts
FCO,FCO,14/04/2021,11157234,"550,000.00",MARSHALL AID COMMERATION COMMISSION,Programme Spend (Oracle Projects Control Account)
FCO,FCO,13/04/2021,11155714,"523,680.88",ERNST AND YOUNG LLP,Programme Spend (Oracle Projects Control Account)
FCO,FCO,16/04/2021,11159835,"513,864.74",EUROPEAN ENDOWMENT FOR DEMOCRACY,Programme Spend (Oracle Projects Control Account)
FCO,FCO,06/04/2021,11143686,"502,479.58",FCDO POSTS,Funding Overseas Posts
FCO,FCO,27/04/2021,11170251,"500,000.00",ATALIAN SERVEST,Inward visits to the UK and UK Conferences
FCO,FCO,29/04/2021,11172377,"500,000.00",ATALIAN SERVEST,Inward visits to the UK and UK Conferences
FCO,FCO,19/04/2021,11161402,"498,946.00",ADAM SMITH INTERNATIONAL,Programme Spend (Oracle Projects Control Account)
FCO,FCO,28/04/2021,11171163,"483,784.97",PA CONSULTING GROUP,Programme Spend (Oracle Projects Control Account)
FCO,FCO,13/04/2021,11155686,"481,227.41",ZINC NETWORK LIMITED,Programme Spend (Oracle Projects Control Account)
FCO,FCO,15/04/2021,11158660,"473,588.73",FCDO POSTS,Funding Overseas Posts
FCO,FCO,06/04/2021,11143838,"464,600.25",FCDO POSTS,Funding Overseas Posts
FCO,FCO,22/04/2021,11165152,"462,419.13",DIPLOMATIC SERVICE BUREAU,Multiple Accounts
FCO,FCO,06/04/2021,11143731,"457,577.83",FCDO POSTS,Funding Overseas Posts
FCO,FCO,14/04/2021,11157102,"457,503.28",JLL PROPERTY CONSULTANTS PTE LTD POE,FMCU POE Trust Account Debtor
FCO,FCO,06/04/2021,11144919,"456,617.40",FCDO SERVICES,Construction Project more than 10k
FCO,FCO,29/04/2021,11172723,"452,019.00",UNDP CONTRIBUTIONS,Programme Spend (Oracle Projects Control Account)
FCO,FCO,06/04/2021,11143837,"446,703.09",FCDO POSTS,Funding Overseas Posts
FCO,FCO,06/04/2021,11143661,"444,865.81",FCDO POSTS,Funding Overseas Posts
FCO,FCO,06/04/2021,11143669,"444,865.81",FCDO POSTS,Funding Overseas Posts
FCO,FCO,07/04/2021,11148128,"443,310.42",DAI GLOBAL UK LTD,Programme Spend (Oracle Projects Control Account)
FCO,FCO,06/04/2021,11143673,"437,572.93",FCDO POSTS,Funding Overseas Posts
FCO,FCO,06/04/2021,11143833,"422,449.99",FCDO POSTS,Funding Overseas Posts
FCO,FCO,21/04/2021,11164225,"420,718.56",INTERSERVE FM LTD,Multiple Accounts
FCO,FCO,12/04/2021,11153738,"416,444.87",ARK GROUP DMCC,Programme Spend (Oracle Projects Control Account)
FCO,FCO,14/04/2021,11157546,"411,728.41",PROMOCIONES INMOBILIARIAS DE REFORMA SA DE CV,Rental Payments - non residential
FCO,FCO,20/04/2021,11162376,"408,744.67",PINPOINT CORPORATE SERVICES LIMITED,Programme Spend (Oracle Projects Control Account)
FCO,FCO,12/04/2021,11153908,"407,695.43",MERCY CORPS,Programme Spend (Oracle Projects Control Account)
FCO,FCO,20/04/2021,11162352,"406,102.50",TBR GLOBAL CHAUFFEURING,Vehicle Hire
FCO,FCO,22/04/2021,11165691,"404,780.48",UNITED NATIONS,Programme Spend (Oracle Projects Control Account)
FCO,FCO,21/04/2021,11164680,"399,169.88",INTERSERVE FM LTD,Additions-Assets Under Construction (Oracle PA Control Account)
FCO,FCO,20/04/2021,11162404,"386,405.69",GROH UND RANDEL STEUERBERATER,Multiple Accounts
FCO,FCO,27/04/2021,11170147,"383,496.89",AXIOM INTERNATIONAL LTD,Programme Spend (Oracle Projects Control Account)
FCO,FCO,15/04/2021,11158659,"382,941.63",FCDO POSTS,Funding Overseas Posts
FCO,FCO,22/04/2021,11165598,"371,438.57",IOM INTERNATIONAL ORG FOR MIGRATION,Programme Spend (Oracle Projects Control Account)
FCO,FCO,27/04/2021,11170173,"369,654.48",UNITED NATIONS,Programme Spend (Oracle Projects Control Account)
FCO,FCO,13/04/2021,11155252,"363,134.44",FCDO POSTS,Funding Overseas Posts
FCO,FCO,06/04/2021,11144069,"362,389.47",OVE ARUP & PARTNERS LTD,Programme Spend (Oracle Projects Control Account)
FCO,FCO,06/04/2021,11144678,"360,565.08",FCDO SERVICES,Construction Project more than 10k
FCO,FCO,13/04/2021,11155586,"357,598.06",ISS FACILITY SERVICES LTD FCO OP - POE,Multiple Accounts
FCO,FCO,14/04/2021,11157423,"355,808.64",NATHAN ASSOCIATES LONDON LTD,Programme Spend (Oracle Projects Control Account)
FCO,FCO,27/04/2021,11169992,"354,650.42",IREX,Programme Spend (Oracle Projects Control Account)
FCO,FCO,06/04/2021,11143836,"347,665.09",FCDO POSTS,Funding Overseas Posts
FCO,FCO,06/04/2021,11143658,"346,411.90",FCDO POSTS,Funding Overseas Posts
FCO,FCO,15/04/2021,11158656,"344,990.17",FCDO POSTS,Funding Overseas Posts
FCO,FCO,06/04/2021,11143829,"342,573.83",FCDO POSTS,Funding Overseas Posts
FCO,FCO,22/04/2021,11165259,"339,356.00",DELOITTE AND TOUCHE LLP,Programme Spend (Oracle Projects Control Account)
FCO,FCO,23/04/2021,11166677,"338,135.99",ERNST AND YOUNG LLP,Programme Spend (Oracle Projects Control Account)
FCO,FCO,06/04/2021,11143683,"328,179.70",FCDO POSTS,Funding Overseas Posts
FCO,FCO,06/04/2021,11143823,"327,006.33",FCDO POSTS,Funding Overseas Posts
FCO,FCO,30/04/2021,11173868,"319,201.66",PALLADIUM,Programme Spend (Oracle Projects Control Account)
FCO,FCO,19/04/2021,11161490,"315,193.72",G4S RISK MANAGEMENT LIMITED,Programme Spend (Oracle Projects Control Account)
FCO,FCO,06/04/2021,11143849,"308,531.48",FCDO POSTS,Funding Overseas Posts
FCO,FCO,26/04/2021,11168144,"306,354.84",SPECIALIST COMPUTER CENTRES PLC,IT Hosting
FCO,FCO,19/04/2021,11161395,"300,343.48",CABINET OFFICE,Programme Spend (Oracle Projects Control Account)
FCO,FCO,22/04/2021,11165697,"299,499.71",UNITED NATIONS,Programme Spend (Oracle Projects Control Account)
FCO,FCO,06/04/2021,11144099,"294,831.86",FCDO SERVICES,Residential Property Services
FCO,FCO,30/04/2021,11173893,"290,672.25",EUROPEAN SPACE AGENCY,Protocol - General VAT Refunds to Other Organisations
FCO,FCO,22/04/2021,11165489,"286,137.58",THE BRITISH COUNCIL,Programme Spend (Oracle Projects Control Account)
FCO,FCO,07/04/2021,11147594,"284,142.00",KPMG LLP,Programme Spend (Oracle Projects Control Account)
FCO,FCO,12/04/2021,11153965,"284,142.00",KPMG LLP,Programme Spend (Oracle Projects Control Account)
FCO,FCO,06/04/2021,11143733,"283,501.54",FCDO POSTS,Funding Overseas Posts
FCO,FCO,26/04/2021,11168455,"283,090.43",ZINC NETWORK LIMITED,Programme Spend (Oracle Projects Control Account)
FCO,FCO,21/04/2021,11163812,"282,463.94",FCDO SERVICES,Air Freight Dip Bags - Freight & Clearance Charges
FCO,FCO,13/04/2021,11155689,"280,037.43",MERCY CORPS,Programme Spend (Oracle Projects Control Account)
FCO,FCO,07/04/2021,11146814,"277,136.80",MINISTRY OF FINANCE,Multiple Accounts
FCO,FCO,06/04/2021,11143828,"277,016.85",FCDO POSTS,Funding Overseas Posts
FCO,FCO,06/04/2021,11143902,"276,000.00",FCDO POSTS,Funding Overseas Posts
FCO,FCO,28/04/2021,11171157,"272,831.89",STRATAGEM CONSULTING,Multiple Accounts
FCO,FCO,19/04/2021,11161294,"272,083.76",ISS FACILITY SERVICES LTD FCO OP,Multiple Accounts
FCO,FCO,06/04/2021,11144626,"271,829.94",FCDO SERVICES,IT Support
FCO,FCO,15/04/2021,11158850,"270,500.34",URSSAF,Multiple Accounts
FCO,FCO,06/04/2021,11144292,"270,404.45",FCDO SERVICES,Residential Property Services
FCO,FCO,21/04/2021,11164348,"270,255.04",BAE SYSTEMS APPLIED INTELLIGENCE LIMITED,IT Management and Change
FCO,FCO,13/04/2021,11155583,"268,848.58",ISS FACILITY SERVICES LTD FCO OP - POE,Multiple Accounts
FCO,FCO,14/04/2021,11157269,"258,969.52",AFGHAN KNOWLEDGE SOLUTION,Programme Spend (Oracle Projects Control Account)
FCO,FCO,09/04/2021,11151080,"258,720.91",BAE SYSTEMS APPLIED INTELLIGENCE LIMITED,IT Management and Change
FCO,FCO,09/04/2021,11151243,"257,709.76",EDF ENERGY,Electricity Non-Residential
FCO,FCO,26/04/2021,11168576,"256,633.51",845 THIRD LP,Multiple Accounts
FCO,FCO,15/04/2021,11158636,"256,585.70",FCDO POSTS,Funding Overseas Posts
FCO,FCO,30/04/2021,11173882,"254,576.46",EUROPEAN SPACE AGENCY,Protocol - General VAT Refunds to Other Organisations
FCO,FCO,16/04/2021,11159778,"252,659.53",AXIOM INTERNATIONAL LTD,Programme Spend (Oracle Projects Control Account)
FCO,FCO,13/04/2021,11155602,"252,258.38",ISS FACILITY SERVICES LTD FCO OP - POE,Multiple Accounts
FCO,FCO,06/04/2021,11144483,"251,666.99",THE SHADOWSERVER FOUNDATION,Programme Spend (Oracle Projects Control Account)
FCO,FCO,30/04/2021,11173900,"251,550.95",CABINET OFFICE,Programme Spend (Oracle Projects Control Account)
FCO,FCO,22/04/2021,11165767,"251,085.47",885 SECOND AVENUE LESSEE LLC,Multiple Accounts
FCO,FCO,07/04/2021,11148131,"250,691.50",CAPGEMINI UK PLC,IT Management and Change
FCO,FCO,06/04/2021,11144018,"250,000.00",FCDO POSTS,Funding Overseas Posts
FCO,FCO,06/04/2021,11143680,"244,822.05",FCDO POSTS,Funding Overseas Posts
FCO,FCO,29/04/2021,11172793,"242,883.50",COMPUTACENTER UK LTD,Additions-Assets Under Construction (Oracle PA Control Account)
FCO,FCO,28/04/2021,11171309,"241,631.94",CIBER TEC SAS,Recharge Suspense Account (Oracle PA Control Account)
FCO,FCO,16/04/2021,11159987,"240,349.23",FCDO POSTS,Funding Overseas Posts
FCO,FCO,27/04/2021,11170161,"239,973.00",UNDP CONTRIBUTIONS,Programme Spend (Oracle Projects Control Account)
FCO,FCO,06/04/2021,11143613,"239,396.65",FCDO SERVICES,Additions-Assets Under Construction (Oracle PA Control Account)
FCO,FCO,06/04/2021,11144920,"232,043.17",FCDO SERVICES,Additions-Assets Under Construction (Oracle PA Control Account)
FCO,FCO,15/04/2021,11158439,"232,037.17",POMERLEAU INC,Additions-Assets Under Construction (Oracle PA Control Account)
FCO,FCO,13/04/2021,11155571,"229,342.00",THE BRITISH COUNCIL,Programme Spend (Oracle Projects Control Account)
FCO,FCO,06/04/2021,11144629,"227,600.28",FCDO SERVICES,IT Support
FCO,FCO,06/04/2021,11143730,"226,650.70",FCDO POSTS,Funding Overseas Posts
FCO,FCO,27/04/2021,11170067,"224,768.82",SECUREX AGENCIES LTD,Staff and Other Advances AP Control (Oracle Ap Control Account)
FCO,FCO,16/04/2021,11159782,"224,310.10",AXIOM INTERNATIONAL LTD,Programme Spend (Oracle Projects Control Account)
FCO,FCO,06/04/2021,11143671,"222,680.86",FCDO POSTS,Funding Overseas Posts
FCO,FCO,30/04/2021,11173961,"222,554.00",INTERNATIONAL CIVIL SOCIETY ACTION NETWORK,Programme Spend (Oracle Projects Control Account)
FCO,FCO,09/04/2021,11151109,"220,597.58",BAE SYSTEMS APPLIED INTELLIGENCE LIMITED,IT Management and Change
FCO,FCO,06/04/2021,11143649,"220,463.83",FCDO POSTS,Funding Overseas Posts
FCO,FCO,22/04/2021,11165260,"218,931.00",DELOITTE AND TOUCHE LLP,Programme Spend (Oracle Projects Control Account)
FCO,FCO,15/04/2021,11158613,"218,786.46",FCDO POSTS,Funding Overseas Posts
FCO,FCO,06/04/2021,11143736,"214,078.00",FCDO POSTS,Funding Overseas Posts
FCO,FCO,15/04/2021,11158635,"213,821.42",FCDO POSTS,Funding Overseas Posts
FCO,FCO,06/04/2021,11144681,"213,214.71",FCDO SERVICES,Construction Project more than 10k
FCO,FCO,14/04/2021,11157122,"212,951.58",JLL PROPERTY CONSULTANTS PTE LTD POE,FMCU POE Trust Account Debtor
FCO,FCO,23/04/2021,11166961,"211,788.80",SEGURIDAD SOCIAL,Multiple Accounts
FCO,FCO,15/04/2021,11158769,"210,000.00",ERNST AND YOUNG LLP,Programme Spend (Oracle Projects Control Account)
FCO,FCO,21/04/2021,11163770,"208,585.83",FCDO SERVICES,Air Freight Dip Bags - Freight & Clearance Charges
FCO,FCO,21/04/2021,11163944,"207,968.70",GW CONSULTING UK LTD,UK Guarding Contracts Overseas
FCO,FCO,13/04/2021,11155581,"206,604.24",ISS FACILITY SERVICES LTD FCO OP - POE,Multiple Accounts
FCO,FCO,07/04/2021,11148132,"205,812.38",MERCY CORPS,Programme Spend (Oracle Projects Control Account)
FCO,FCO,20/04/2021,11162459,"204,200.70",ACCOMMODATION PROVIDER,Rental Payments - non residential
FCO,FCO,06/04/2021,11143737,"202,702.70",FCDO POSTS,Funding Overseas Posts
FCO,FCO,06/04/2021,11143824,"202,456.40",FCDO POSTS,Funding Overseas Posts
FCO,FCO,21/04/2021,11164128,"201,735.15",INTERSERVE FM LTD,Additions-Assets Under Construction (Oracle PA Control Account)
FCO,FCO,06/04/2021,11143842,"200,694.61",FCDO POSTS,Funding Overseas Posts
FCO,FCO,19/04/2021,11161546,"200,620.00",MOD MINISTRY OF DEFENCE,Additions-Assets Under Construction (Oracle PA Control Account)
FCO,FCO,16/04/2021,11160019,"199,262.00",SUDO UK,Programme Spend (Oracle Projects Control Account)
FCO,FCO,13/04/2021,11155171,"198,556.73",CLICKSUPER,Multiple Accounts
FCO,FCO,23/04/2021,11166544,"197,846.32",OVERSEAS SUPPLY SERVICES LTD,Estates Management Services
FCO,FCO,06/04/2021,11143729,"196,715.70",FCDO POSTS,Funding Overseas Posts
FCO,FCO,06/04/2021,11143810,"194,685.44",FCDO POSTS,Funding Overseas Posts
FCO,FCO,15/04/2021,11158658,"194,685.44",FCDO POSTS,Funding Overseas Posts
FCO,FCO,27/04/2021,11170104,"194,682.42",CAPGEMINI UK PLC,IT Support
FCO,FCO,21/04/2021,11164660,"193,461.82",TETRA TECH INTERNATIONAL DEVELOPMENT,Programme Spend (Oracle Projects Control Account)
FCO,FCO,16/04/2021,11159831,"192,647.99",OROSTREAM INTERNATIONAL CONTRACTS LTD,Additions-Assets Under Construction (Oracle PA Control Account)
FCO,FCO,06/04/2021,11143807,"191,724.18",FCDO POSTS,Funding Overseas Posts
FCO,FCO,07/04/2021,11148119,"190,772.52",SIREN ASSOCIATES LTD,Programme Spend (Oracle Projects Control Account)
FCO,FCO,30/04/2021,11173825,"190,266.63",AXIOM INTERNATIONAL LTD,Programme Spend (Oracle Projects Control Account)
FCO,FCO,19/04/2021,11161406,"189,802.08",OVE ARUP & PARTNERS LTD,Programme Spend (Oracle Projects Control Account)
FCO,FCO,28/04/2021,11171335,"188,574.78",IOS OFFICES DE MEXICO SA DE CV,Rental Payments - non residential
FCO,FCO,29/04/2021,11172849,"188,266.47",EUROPEAN BANKING AUTHORITY,Protocol - General VAT Refunds to Other Organisations
FCO,FCO,20/04/2021,11162839,"186,226.66",SYNERGY CONSULTANCY LTD,Programme Spend (Oracle Projects Control Account)
FCO,FCO,27/04/2021,11170167,"186,216.00",HEALTH EDUCATION ENGLAND,Programme Spend (Oracle Projects Control Account)
FCO,FCO,06/04/2021,11143610,"182,409.24",GW CONSULTING UK LTD,UK Mobile Guarding Contract overseas
FCO,FCO,06/04/2021,11143958,"181,250.00",CROWN ESTATE COMMIS CASH A C,Rental Payments - non residential
FCO,FCO,19/04/2021,11161504,"180,000.00",UNITED NATIONS,Programme Spend (Oracle Projects Control Account)
FCO,FCO,06/04/2021,11143821,"177,564.34",FCDO POSTS,Funding Overseas Posts
FCO,FCO,15/04/2021,11158603,"177,532.63",EUROPEAN MEDICINES AGENCY,Protocol - General VAT Refunds to Other Organisations
FCO,FCO,15/04/2021,11158790,"177,274.65",HALA SYSTEMS INC,Programme Spend (Oracle Projects Control Account)
FCO,FCO,06/04/2021,11143850,"175,352.46",FCDO POSTS,Funding Overseas Posts
FCO,FCO,06/04/2021,11143802,"175,099.70",FCDO POSTS,Funding Overseas Posts
FCO,FCO,06/04/2021,11143803,"175,035.55",FCDO POSTS,Funding Overseas Posts
FCO,FCO,06/04/2021,11143804,"174,225.44",FCDO POSTS,Funding Overseas Posts
FCO,FCO,23/04/2021,11166503,"173,640.32",OVERSEAS SUPPLY SERVICES LTD,Estates Management Services
FCO,FCO,06/04/2021,11144918,"173,296.25",FCDO SERVICES,Construction Project more than 10k
FCO,FCO,15/04/2021,11158529,"171,543.02",FCDO SERVICES,Specialist Contractors
FCO,FCO,06/04/2021,11144659,"170,983.50",TFP FARRELLS LTD,Additions-Assets Under Construction (Oracle PA Control Account)
FCO,FCO,15/04/2021,11158556,"169,485.48",GOVERNMENT COMMUNICATIONS BUREAU ADMIN A/C 6253,Customer Refund Account
FCO,FCO,22/04/2021,11165257,"167,102.00",DELOITTE AND TOUCHE LLP,Programme Spend (Oracle Projects Control Account)
FCO,FCO,26/04/2021,11168457,"167,048.16",ZINC NETWORK LIMITED,Programme Spend (Oracle Projects Control Account)
FCO,FCO,08/04/2021,11149399,"166,858.22",ATKINS LTD,Additions-Assets Under Construction (Oracle PA Control Account)
FCO,FCO,30/04/2021,11173976,"165,513.18",ATKINS LTD,Additions-Assets Under Construction (Oracle PA Control Account)
FCO,FCO,12/04/2021,11154107,"165,402.57",THE EGYPTIAN CONSULATE GENERAL IN LONDON,Rental Payments - non residential
FCO,FCO,09/04/2021,11151150,"164,775.97",GET SAFE ONLINE,Programme Spend (Oracle Projects Control Account)
FCO,FCO,26/04/2021,11168090,"164,653.78",PEACEFUL CHANGE INITIATIVE,Programme Spend (Oracle Projects Control Account)
FCO,FCO,09/04/2021,11151456,"160,685.20",INSTITUTE FOR WAR AND PEACE REPORTING IWPR,Programme Spend (Oracle Projects Control Account)
FCO,FCO,09/04/2021,11151508,"159,761.94",ATLANTIC COUNCIL DIGITAL FORENSIC RESEARCH LAB,Programme Spend (Oracle Projects Control Account)
FCO,FCO,13/04/2021,11155577,"159,672.05",ISS FACILITY SERVICES LTD FCO OP - POE,Multiple Accounts
FCO,FCO,06/04/2021,11144595,"155,144.56",THE BRITISH COUNCIL,Programme Spend (Oracle Projects Control Account)
FCO,FCO,08/04/2021,11150066,"154,105.99",TORRE ESPACIO CASTELLANA SAU,Multiple Accounts
FCO,FCO,14/04/2021,11157378,"153,419.46",PALLADIUM,Programme Spend (Oracle Projects Control Account)
FCO,FCO,21/04/2021,11163990,"152,883.32",INTERSERVE FM LTD,Multiple Accounts
FCO,FCO,12/04/2021,11154118,"152,613.77",OPERADORA ATXK,Additions-Assets Under Construction (Oracle PA Control Account)
FCO,FCO,26/04/2021,11168170,"150,944.20",BYTES SOFTWARE SERVICES LTD,End User Software and Hardware
FCO,FCO,15/04/2021,11158171,"149,996.79",BUPA INTERNATIONAL,Multiple Accounts
FCO,FCO,12/04/2021,11153648,"149,720.00",UNITED NATIONS,Programme Spend (Oracle Projects Control Account)
FCO,FCO,14/04/2021,11157098,"149,642.52",JLL PROPERTY CONSULTANTS PTE LTD POE,FMCU POE Trust Account Debtor
FCO,FCO,22/04/2021,11165461,"149,096.04",TETRA TECH INTERNATIONAL DEVELOPMENT,Programme Spend (Oracle Projects Control Account)
FCO,FCO,15/04/2021,11158774,"147,843.23",DEFENCE BUSINESS SERVICES FINANCE,Mod Guarding Services Residential
FCO,FCO,23/04/2021,11166652,"147,692.54",BEIS DEPARTMENT FOR BUSINESS ENERGY AND INDUSTRIAL STRATEGY,Programme Spend (Oracle Projects Control Account)
FCO,FCO,06/04/2021,11143685,"145,857.64",FCDO POSTS,Funding Overseas Posts
FCO,FCO,20/04/2021,11162527,"145,573.89",CHRISTIAN AID,Programme Spend (Oracle Projects Control Account)
FCO,FCO,01/04/2021,11122952,"144,817.66",BELLS POWER SERVICES LTD,Additions-Assets Under Construction (Oracle PA Control Account)
FCO,FCO,20/04/2021,11162336,"144,731.90",SHANGHAI FOREIGN AGENCY SERVICE COMPANY,Multiple Accounts
FCO,FCO,13/04/2021,11155185,"144,572.30",SUSTAINABLE CRIMINAL JUSTICE SOLUTIONS,Programme Spend (Oracle Projects Control Account)
FCO,FCO,07/04/2021,11147280,"142,775.11",THE GLOBAL STRATEGY NETWORK,Programme Spend (Oracle Projects Control Account)
FCO,FCO,29/04/2021,11172287,"142,617.77",PICKFORDS MOVE MANAGEMENT LTD,Heavy Baggage
FCO,FCO,12/04/2021,11154028,"142,336.00",MILTON KEYNES COUNCIL,Rates Taxes Non-Residential
FCO,FCO,29/04/2021,11172792,"142,336.00",MILTON KEYNES COUNCIL,Rates Taxes Non-Residential
FCO,FCO,21/04/2021,11164110,"141,744.42",INTERSERVE FM LTD,Construction Project more than 10k
FCO,FCO,06/04/2021,11143650,"141,030.48",FCDO POSTS,Funding Overseas Posts
FCO,FCO,06/04/2021,11144676,"139,088.56",FCDO SERVICES,Additions-Assets Under Construction (Oracle PA Control Account)
FCO,FCO,26/04/2021,11168310,"138,462.66",KPMG FIDUCIAIRE,Multiple Accounts
FCO,FCO,19/04/2021,11161273,"136,524.23",ISS FACILITY SERVICES LTD FCO OP,Multiple Accounts
FCO,FCO,27/04/2021,11169988,"136,280.00",COMMONWEALTH PARLIAMENTARY ASSOCIATION,Programme Spend (Oracle Projects Control Account)
FCO,FCO,06/04/2021,11143839,"136,123.21",FCDO POSTS,Funding Overseas Posts
FCO,FCO,06/04/2021,11143766,"135,471.63",CONTROLLED BUILDING MEASURES LIMITED,Additions-Assets Under Construction (Oracle PA Control Account)
FCO,FCO,26/04/2021,11168246,"135,172.58",TETRA TECH INTERNATIONAL DEVELOPMENT,Programme Spend (Oracle Projects Control Account)
FCO,FCO,30/04/2021,11173885,"135,125.00",THE BRITISH COUNCIL,Programme Spend (Oracle Projects Control Account)
FCO,FCO,20/04/2021,11162578,"134,822.00",ADVICE ON INDIVIDUAL RIGHTS IN EUROPE,Programme Spend (Oracle Projects Control Account)
FCO,FCO,19/04/2021,11161226,"134,801.66",PRICEWATERHOUSECOOPERS LLP,Programme Spend (Oracle Projects Control Account)
FCO,FCO,21/04/2021,11164648,"132,641.00",COMPUTACENTER UK LTD,IT Management and Change
FCO,FCO,19/04/2021,11161380,"132,527.99",AXIOM INTERNATIONAL LTD,Programme Spend (Oracle Projects Control Account)
FCO,FCO,13/04/2021,11155591,"131,646.26",ISS FACILITY SERVICES LTD FCO OP - POE,Multiple Accounts
FCO,FCO,06/04/2021,11144303,"130,984.30",AECOM,Additions-Assets Under Construction (Oracle PA Control Account)
FCO,FCO,19/04/2021,11161487,"130,706.00",INNOVATION AND INSIGHT FZE,Programme Spend (Oracle Projects Control Account)
FCO,FCO,21/04/2021,11164134,"130,318.17",INTERSERVE FM LTD,Construction Project more than 10k
FCO,FCO,06/04/2021,11143749,"130,096.86",FCDO SERVICES,Recharge Suspense Account (Oracle PA Control Account)
FCO,FCO,13/04/2021,11155479,"128,426.31",ALBANY ASSOCIATES,Programme Spend (Oracle Projects Control Account)
FCO,FCO,21/04/2021,11164184,"128,236.74",INTERSERVE FM LTD,Multiple Accounts
FCO,FCO,06/04/2021,11143852,"127,646.36",FCDO POSTS,Funding Overseas Posts
FCO,FCO,06/04/2021,11143739,"126,582.28",FCDO POSTS,Funding Overseas Posts
FCO,FCO,06/04/2021,11143813,"124,253.80",FCDO POSTS,Funding Overseas Posts
FCO,FCO,26/04/2021,11168151,"123,832.41",ATKINS LTD,Additions-Assets Under Construction (Oracle PA Control Account)
FCO,FCO,06/04/2021,11144492,"123,283.04",GET SAFE ONLINE,Programme Spend (Oracle Projects Control Account)
FCO,FCO,06/04/2021,11143655,"123,249.71",FCDO POSTS,Funding Overseas Posts
FCO,FCO,06/04/2021,11143841,"123,158.89",FCDO POSTS,Funding Overseas Posts
FCO,FCO,28/04/2021,11171471,"122,885.60",THE BRITISH COUNCIL,Programme Spend (Oracle Projects Control Account)
FCO,FCO,26/04/2021,11168530,"122,467.55",OFFICE OF THE COMMISSIONER OF POLICE,Programme Spend (Oracle Projects Control Account)
FCO,FCO,27/04/2021,11170049,"121,677.50",CABINET OFFICE,Programme Spend (Oracle Projects Control Account)
FCO,FCO,28/04/2021,11171094,"120,332.56",ACCOMMODATION PROVIDER,Rental Payments - residential
FCO,FCO,21/04/2021,11164115,"119,968.48",INTERSERVE FM LTD,Construction Project more than 10k
FCO,FCO,14/04/2021,11157268,"119,795.44",ITAD LTD,Programme Spend (Oracle Projects Control Account)
FCO,FCO,27/04/2021,11170114,"119,311.29",INTEGRITY RESEARCH AND CONSULTANCY LTD,Programme Spend (Oracle Projects Control Account)
FCO,FCO,14/04/2021,11156961,"118,990.67",HOTELLINE FOR TOURISTIC INVESTMENT LTD,Multiple Accounts
FCO,FCO,15/04/2021,11158785,"118,399.21",HALA SYSTEMS INC,Programme Spend (Oracle Projects Control Account)
FCO,FCO,27/04/2021,11169955,"118,284.39",CARDIFF UNIVERSITY,Programme Spend (Oracle Projects Control Account)
FCO,FCO,13/04/2021,11155592,"117,471.39",ISS FACILITY SERVICES LTD FCO OP - POE,Multiple Accounts
FCO,FCO,29/04/2021,11172243,"117,400.00",DELOITTE AND TOUCHE LLP,Programme Spend (Oracle Projects Control Account)
FCO,FCO,06/04/2021,11143814,"116,801.99",FCDO POSTS,Funding Overseas Posts
FCO,FCO,21/04/2021,11164100,"116,139.32",INTERSERVE FM LTD,Multiple Accounts
FCO,FCO,19/04/2021,11161308,"116,100.12",ISS FACILITY SERVICES LTD FCO OP,Multiple Accounts
FCO,FCO,28/04/2021,11171058,"115,346.00",SAFERWORLD,Programme Spend (Oracle Projects Control Account)
FCO,FCO,06/04/2021,11143592,"115,334.51",FCDO SERVICES,Additions-Assets Under Construction (Oracle PA Control Account)
FCO,FCO,28/04/2021,11171161,"115,279.00",BABCOCK VEHICLE ENGINEERING LTD,Additions-Assets Under Construction (Oracle PA Control Account)
FCO,FCO,21/04/2021,11164336,"114,616.30",AECOM,Additions-Assets Under Construction (Oracle PA Control Account)
FCO,FCO,06/04/2021,11143977,"114,124.37",CROWN ESTATE COMMIS CASH A C,Rental Payments - residential
FCO,FCO,08/04/2021,11149802,"114,012.52",BENNETT CONSTRUCTION COMPANY LTD,Programme Spend (Oracle Projects Control Account)
FCO,FCO,29/04/2021,11172366,"113,065.87",MITEL NETWORKS LTD,IT Networking
FCO,FCO,06/04/2021,11143662,"113,039.67",FCDO POSTS,Funding Overseas Posts
FCO,FCO,06/04/2021,11143805,"112,035.11",FCDO POSTS,Funding Overseas Posts
FCO,FCO,20/04/2021,11162355,"111,396.99",FCDO SERVICES,Additions-Assets Under Construction (Oracle PA Control Account)
FCO,FCO,06/04/2021,11144599,"110,896.62",THE BRITISH COUNCIL,Programme Spend (Oracle Projects Control Account)
FCO,FCO,06/04/2021,11144299,"110,787.86",KPMG LLP,Organisation and Change Management Consultancy
FCO,FCO,16/04/2021,11160276,"110,149.17",AETNA,Multiple Accounts
FCO,FCO,06/04/2021,11144251,"109,536.00",FCDO SERVICES,Construction Project more than 10k
FCO,FCO,06/04/2021,11143684,"109,393.23",FCDO POSTS,Funding Overseas Posts
FCO,FCO,20/04/2021,11162817,"109,137.38",TRANSAMERICA,Multiple Accounts
FCO,FCO,07/04/2021,11147289,"108,682.87",TRANSAMERICA,Multiple Accounts
FCO,FCO,06/04/2021,11144152,"107,911.00",BLUE ABACUS LTD,Programme Spend (Oracle Projects Control Account)
FCO,FCO,20/04/2021,11162362,"107,590.48",ADAM SMITH INTERNATIONAL,Programme Spend (Oracle Projects Control Account)
FCO,FCO,08/04/2021,11149161,"107,397.12",PRICEWATERHOUSECOOPERS LLP,Programme Spend (Oracle Projects Control Account)
FCO,FCO,16/04/2021,11159734,"107,296.14",FCDO SERVICES,Air Freight Dip Bags - Freight & Clearance Charges
FCO,FCO,19/04/2021,11161366,"105,612.30",AXIOM INTERNATIONAL LTD,Programme Spend (Oracle Projects Control Account)
FCO,FCO,23/04/2021,11166491,"105,046.55",ADP,Multiple Accounts
FCO,FCO,19/04/2021,11161488,"105,026.85",BBC MEDIA ACTION,Programme Spend (Oracle Projects Control Account)
FCO,FCO,16/04/2021,11159509,"104,300.05",PILDAT,Programme Spend (Oracle Projects Control Account)
FCO,FCO,07/04/2021,11146824,"104,142.36",ACCOMMODATION PROVIDER,Rental Payments - residential
FCO,FCO,08/04/2021,11148895,"104,142.36",ACCOMMODATION PROVIDER,Rental Payments - residential
FCO,FCO,20/04/2021,11162271,"104,105.70",INSTITUT FOR SECURITY STUDIES,Programme Spend (Oracle Projects Control Account)
FCO,FCO,26/04/2021,11168092,"103,990.23",CROWN AGENTS BANK,Programme Spend (Oracle Projects Control Account)
FCO,FCO,06/04/2021,11143818,"103,884.86",FCDO POSTS,Funding Overseas Posts
FCO,FCO,19/04/2021,11161324,"103,752.66",ISS FACILITY SERVICES LTD FCO OP,Multiple Accounts
FCO,FCO,08/04/2021,11148920,"103,319.58",ADP,Multiple Accounts
FCO,FCO,23/04/2021,11166615,"102,115.00",DISCOVERY QUAY ENTERPRISE TRADING LTD,Inward visits to the UK and UK Conferences
FCO,FCO,15/04/2021,11158729,"101,248.40",ALBANY ASSOCIATES,Programme Spend (Oracle Projects Control Account)
FCO,FCO,28/04/2021,11172040,"100,312.14",BMATT,Recharge Suspense Account (Oracle PA Control Account)
FCO,FCO,06/04/2021,11144605,"100,000.00",PRICEWATERHOUSECOOPERS LLP,Programme Spend (Oracle Projects Control Account)
FCO,FCO,29/04/2021,11172783,"100,000.00",JOHN SMITH MEMORIAL TRUST,Programme Spend (Oracle Projects Control Account)
FCO,FCO,06/04/2021,11144694,"99,561.42",FCDO SERVICES,Medical Supplies
FCO,FCO,20/04/2021,11162549,"98,801.00",INNOVATION AND INSIGHT FZE,Programme Spend (Oracle Projects Control Account)
FCO,FCO,29/04/2021,11172268,"98,706.69",CULTURA INGLESA,Multiple Accounts
FCO,FCO,07/04/2021,11148004,"97,570.00",MOTT MACDONALD LTD,Programme Spend (Oracle Projects Control Account)
FCO,FCO,20/04/2021,11162532,"96,876.60",CHRISTIAN AID,Programme Spend (Oracle Projects Control Account)
FCO,FCO,28/04/2021,11171160,"96,510.00",COMPUTACENTER UK LTD,Additions-Assets Under Construction (Oracle PA Control Account)
FCO,FCO,23/04/2021,11166408,"96,472.86",DATACOM EMPLOYER SERVICES,Multiple Accounts
FCO,FCO,06/04/2021,11144488,"95,568.00",ADVICE ON INDIVIDUAL RIGHTS IN EUROPE,Programme Spend (Oracle Projects Control Account)
FCO,FCO,06/04/2021,11144444,"94,889.83",FCDO SERVICES,Additions-Assets Under Construction (Oracle PA Control Account)
FCO,FCO,06/04/2021,11144922,"94,395.66",FCDO SERVICES,Additions-Assets Under Construction (Oracle PA Control Account)
FCO,FCO,06/04/2021,11143845,"93,741.29",FCDO POSTS,Funding Overseas Posts
FCO,FCO,08/04/2021,11149167,"93,692.11",PRICEWATERHOUSECOOPERS LLP,Programme Spend (Oracle Projects Control Account)
FCO,FCO,28/04/2021,11171165,"93,024.90",PA CONSULTING GROUP,Programme Spend (Oracle Projects Control Account)
FCO,FCO,06/04/2021,11144430,"92,846.99",COMPUTACENTER UK LTD,IT Management and Change
FCO,FCO,21/04/2021,11164114,"92,483.96",INTERSERVE FM LTD,Construction Project more than 10k
FCO,FCO,23/04/2021,11166545,"91,145.00",UNITED NATIONS POPULATION FUND,Programme Spend (Oracle Projects Control Account)
FCO,FCO,06/04/2021,11162907,"90,577.93",THE ROYAL BANK OF SCOTLAND,GPC Clearing Account
FCO,FCO,15/04/2021,11158557,"90,531.73",FCDO SERVICES,Additions-Assets Under Construction (Oracle PA Control Account)
FCO,FCO,14/04/2021,11157444,"90,000.00",ERNST AND YOUNG LLP,Programme Spend (Oracle Projects Control Account)
FCO,FCO,30/04/2021,11173543,"90,000.00",NGU FOUNDATION FOR SUPPORT OF REFORMS IN UKRAINE,Recharge Suspense Account (Oracle PA Control Account)
FCO,FCO,19/04/2021,11161346,"89,892.88",ISS FACILITY SERVICES LTD FCO OP,Multiple Accounts
FCO,FCO,29/04/2021,11172246,"89,712.60",SOFTWAREONE UK LTD,End User Software and Hardware
FCO,FCO,30/04/2021,11173752,"89,584.00",THE HALO TRUST,Programme Spend (Oracle Projects Control Account)
FCO,FCO,22/04/2021,11165538,"89,268.53",INSTITUTE FOR WAR AND PEACE REPORTING IWPR,Programme Spend (Oracle Projects Control Account)
FCO,FCO,08/04/2021,11149565,"89,110.00",SCOTT LOGIC,IT Support
FCO,FCO,06/04/2021,11143826,"88,189.38",FCDO POSTS,Funding Overseas Posts
FCO,FCO,23/04/2021,11166798,"87,931.10","ORCHARD, ROMNEY, BECK & ASSOC INC",Programme Spend (Oracle Projects Control Account)
FCO,FCO,30/04/2021,11173813,"87,707.52",AETNA,Multiple Accounts
FCO,FCO,12/04/2021,11154046,"87,596.39",PRICEWATERHOUSECOOPERS LLP,Programme Spend (Oracle Projects Control Account)
FCO,FCO,19/04/2021,11161177,"87,528.58",TETRA TECH INTERNATIONAL DEVELOPMENT BV,Programme Spend (Oracle Projects Control Account)
FCO,FCO,30/04/2021,11173850,"87,362.26",THE GALLERIA INVESTMENTS LLC,Recharge Suspense Account (Oracle PA Control Account)
FCO,FCO,06/04/2021,11144308,"87,328.06",EUROPEAN ENDOWMENT FOR DEMOCRACY,Programme Spend (Oracle Projects Control Account)
FCO,FCO,27/04/2021,11170057,"87,023.14",CROWN AGENTS LIMITED,Programme Spend (Oracle Projects Control Account)
FCO,FCO,06/04/2021,11143652,"86,788.46",FCDO POSTS,Funding Overseas Posts
FCO,FCO,26/04/2021,11168176,"86,474.00",COMPUTACENTER UK LTD,Additions-Assets Under Construction (Oracle PA Control Account)
FCO,FCO,21/04/2021,11164237,"86,423.01",INTERSERVE FM LTD,Additions-Assets Under Construction (Oracle PA Control Account)
FCO,FCO,06/04/2021,11143656,"86,056.01",FCDO POSTS,Funding Overseas Posts
FCO,FCO,09/04/2021,11151384,"85,979.28",HUMANIS,Multiple Accounts
FCO,FCO,06/04/2021,11143811,"85,378.87",FCDO POSTS,Funding Overseas Posts
FCO,FCO,22/04/2021,11165639,"84,478.37",GENEVA CENTRE FOR THE DEMOCRATIC CONTROL OF ARMED FORCES - DCAF,Programme Spend (Oracle Projects Control Account)
FCO,FCO,09/04/2021,11151191,"84,347.49",PDP PROJECTS LIMITED,Unscheduled repairs to building infrastructure
FCO,FCO,06/04/2021,11143827,"84,000.00",FCDO POSTS,Funding Overseas Posts
FCO,FCO,07/04/2021,11146860,"83,552.26",LEGAL AND GENERAL ASSURANCE SOCIETY LTD,Additional Volunteer Contribution
FCO,FCO,15/04/2021,11158571,"83,452.80",BAE SYSTEMS APPLIED INTELLIGENCE LIMITED,IT Management and Change
FCO,FCO,09/04/2021,11151049,"83,371.92",BAE SYSTEMS APPLIED INTELLIGENCE LIMITED,IT Management and Change
FCO,FCO,22/04/2021,11165755,"83,369.41",AETNA,Multiple Accounts
FCO,FCO,22/04/2021,11165238,"83,354.31",CONTROLLED BUILDING MEASURES LIMITED,Additions-Assets Under Construction (Oracle PA Control Account)
FCO,FCO,09/04/2021,11151035,"83,252.58",BAE SYSTEMS APPLIED INTELLIGENCE LIMITED,IT Management and Change
FCO,FCO,28/04/2021,11171170,"83,025.90",BAE SYSTEMS APPLIED INTELLIGENCE LIMITED,IT Management and Change
FCO,FCO,06/04/2021,11143864,"82,720.00",ADBLU INTERNATIONAL LIMITED,"Purchase of Furniture, Fittings and Domestic Appliances"
FCO,FCO,07/04/2021,11147999,"82,534.18",MOTT MACDONALD LTD,Programme Spend (Oracle Projects Control Account)
FCO,FCO,13/04/2021,11155606,"82,528.16",ISS FACILITY SERVICES LTD FCO OP - POE,Multiple Accounts
FCO,FCO,26/04/2021,11168258,"82,341.00",KPMG FIDUCIAIRE,Multiple Accounts
FCO,FCO,13/04/2021,11155588,"81,959.79",ISS FACILITY SERVICES LTD FCO OP - POE,Multiple Accounts
FCO,FCO,07/04/2021,11146827,"81,826.14",ACCOMMODATION PROVIDER,Rental Payments - residential
FCO,FCO,22/04/2021,11165766,"81,786.27",FCDO SERVICES,Additions-Assets Under Construction (Oracle PA Control Account)
FCO,FCO,06/04/2021,11144674,"81,439.40",FCDO SERVICES,Additions-Assets Under Construction (Oracle PA Control Account)
FCO,FCO,15/04/2021,11158637,"81,252.14",FCDO POSTS,Funding Overseas Posts
FCO,FCO,09/04/2021,11150988,"81,075.00",GARTNER UK LIMITED,Professional Subscriptions
FCO,FCO,28/04/2021,11170949,"80,913.41",NACO,Recharge Suspense Account (Oracle PA Control Account)
FCO,FCO,19/04/2021,11161270,"80,260.03",ISS FACILITY SERVICES LTD FCO OP,Multiple Accounts
FCO,FCO,21/04/2021,11164272,"79,999.34",INTERSERVE FM LTD,Multiple Accounts
FCO,FCO,06/04/2021,11143843,"79,970.38",FCDO POSTS,Funding Overseas Posts
FCO,FCO,07/04/2021,11148120,"79,844.64",MISSION LABS LIMITED,IT Management and Change
FCO,FCO,29/04/2021,11172842,"79,537.90",EUROPEAN BANKING AUTHORITY,Protocol - General VAT Refunds to Other Organisations
FCO,FCO,29/04/2021,11172788,"79,080.52",OROSTREAM INTERNATIONAL CONTRACTS LTD,Additions-Assets Under Construction (Oracle PA Control Account)
FCO,FCO,23/04/2021,11166376,"78,558.55",BHC INDIA STAFF PROVIDENT FUND,Multiple Accounts
FCO,FCO,28/04/2021,11171314,"78,500.00",BDO LLP,Programme Spend (Oracle Projects Control Account)
FCO,FCO,28/04/2021,11171166,"78,253.04",TETRA TECH INTERNATIONAL DEVELOPMENT,Programme Spend (Oracle Projects Control Account)
FCO,FCO,08/04/2021,11149800,"78,051.65",BENNETT CONSTRUCTION COMPANY LTD,Programme Spend (Oracle Projects Control Account)
FCO,FCO,06/04/2021,11144030,"77,918.78",MEPITS SOLUTIONS,Programme Spend (Oracle Projects Control Account)
FCO,FCO,08/04/2021,11149163,"77,670.13",BAE SYSTEMS APPLIED INTELLIGENCE LIMITED,IT Management and Change
FCO,FCO,19/04/2021,11161128,"77,656.17",GUANGDONG SERVICE OFFICE FOR FOREIGN ESTABLISHMENTS,Multiple Accounts
FCO,FCO,06/04/2021,11144124,"77,591.24",ORACLE CORPORATION (UK) LTD,End User Software and Hardware
FCO,FCO,06/04/2021,11144305,"77,046.96",FCDO SERVICES,Security: Works Non-Residential
FCO,FCO,09/04/2021,11151529,"76,861.52",EUROPEAN ENDOWMENT FOR DEMOCRACY,Programme Spend (Oracle Projects Control Account)
FCO,FCO,08/04/2021,11148879,"76,772.59",TRIBAL EDUCATION LIMITED,Programme Spend (Oracle Projects Control Account)
FCO,FCO,26/04/2021,11168161,"76,734.00",MOTT MACDONALD LTD,Programme Spend (Oracle Projects Control Account)
FCO,FCO,06/04/2021,11143660,"76,575.26",FCDO POSTS,Funding Overseas Posts
FCO,FCO,15/04/2021,11158883,"76,532.87",PICKFORDS MOVE MANAGEMENT LTD,Heavy Baggage
FCO,FCO,23/04/2021,11166818,"76,480.40",UNDP CONTRIBUTIONS,Programme Spend (Oracle Projects Control Account)
FCO,FCO,14/04/2021,11157434,"76,260.00",HOOTSUITE,End User Software and Hardware
FCO,FCO,13/04/2021,11155603,"76,209.59",ISS FACILITY SERVICES LTD FCO OP - POE,Multiple Accounts
FCO,FCO,23/04/2021,11166479,"75,918.50",DIPLOMATIC MISSION SUPPLIES LTD,"Purchase of Furniture, Fittings and Domestic Appliances"
FCO,FCO,07/04/2021,11162907,"75,860.69",THE ROYAL BANK OF SCOTLAND,GPC Clearing Account
FCO,FCO,19/04/2021,11161234,"75,693.38",ISS FACILITY SERVICES LTD FCO OP,Multiple Accounts
FCO,FCO,22/04/2021,11165295,"75,391.82",EDUCATION FOR EMPLOYMENT,Programme Spend (Oracle Projects Control Account)
FCO,FCO,06/04/2021,11143912,"75,192.78",THE BRITISH COUNCIL,Programme Spend (Oracle Projects Control Account)
FCO,FCO,29/04/2021,11172369,"74,938.94",MITEL NETWORKS LTD,IT Networking
FCO,FCO,06/04/2021,11143555,"74,669.00",CABINET OFFICE,Programme Spend (Oracle Projects Control Account)
FCO,FCO,21/04/2021,11164325,"74,507.00",INTERSERVE FM LTD,Catering Services
FCO,FCO,20/04/2021,11162870,"74,448.96",COMMONWEALTH PARLIAMENTARY ASSOCIATION,Programme Spend (Oracle Projects Control Account)
FCO,FCO,21/04/2021,11164324,"74,202.29",INTERSERVE FM LTD,Catering Services
FCO,FCO,06/04/2021,11143667,"73,803.97",FCDO POSTS,Funding Overseas Posts
FCO,FCO,08/04/2021,11149766,"73,745.00",SCOTT LOGIC,Multiple Accounts
FCO,FCO,19/04/2021,11161514,"73,707.43",MARCH,Programme Spend (Oracle Projects Control Account)
FCO,FCO,07/04/2021,11146984,"73,604.14",HALA SYSTEMS INC,Programme Spend (Oracle Projects Control Account)
FCO,FCO,19/04/2021,11161252,"72,934.40",ISS FACILITY SERVICES LTD FCO OP,Multiple Accounts
FCO,FCO,06/04/2021,11143668,"72,928.82",FCDO POSTS,Funding Overseas Posts
FCO,FCO,26/04/2021,11168231,"72,732.00",BAE SYSTEMS APPLIED INTELLIGENCE LIMITED,IT Management and Change
FCO,FCO,06/04/2021,11143738,"72,699.28",FCDO POSTS,Funding Overseas Posts
FCO,FCO,26/04/2021,11168235,"72,208.00",RAND EUROPE,Programme Spend (Oracle Projects Control Account)
FCO,FCO,06/04/2021,11143901,"72,199.53",FCDO POSTS,Funding Overseas Posts
FCO,FCO,16/04/2021,11159944,"72,082.12",COMPUTACENTER UK LTD,End User Software and Hardware
FCO,FCO,06/04/2021,11143877,"72,008.02",FCDO SERVICES,Construction Project more than 10k
FCO,FCO,08/04/2021,11162907,"71,943.52",THE ROYAL BANK OF SCOTLAND,GPC Clearing Account
FCO,FCO,20/04/2021,11162369,"71,284.00",GLOBAL DISINFORMATION INDEX,Programme Spend (Oracle Projects Control Account)
FCO,FCO,22/04/2021,11165175,"71,123.86",SHANGRILA ULAANBAATAR HOTEL LLC,Rental Payments - non residential
FCO,FCO,23/04/2021,11166436,"71,110.99",NIA LIMITED,"Purchase of Furniture, Fittings and Domestic Appliances"
FCO,FCO,19/04/2021,11161254,"70,668.03",ACCOMMODATION PROVIDER,Rental Payments - residential
FCO,FCO,29/04/2021,11172647,"70,641.92",COMPUTACENTER UK LTD,IT Management and Change
FCO,FCO,20/04/2021,11162397,"70,527.08",SSK,Multiple Accounts
FCO,FCO,19/04/2021,11161151,"70,390.00",TETRA TECH INTERNATIONAL DEVELOPMENT,Programme Spend (Oracle Projects Control Account)
FCO,FCO,07/04/2021,11147840,"70,015.93",CLRA SKOPJE,Programme Spend (Oracle Projects Control Account)
FCO,FCO,12/04/2021,11153889,"69,869.54",WESTMINSTER FOUNDATION FOR DEMOCRACY,Programme Spend (Oracle Projects Control Account)
FCO,FCO,06/04/2021,11143595,"69,747.00",FCDO SERVICES,Construction Project more than 10k
FCO,FCO,09/04/2021,11151056,"69,707.40",BAE SYSTEMS APPLIED INTELLIGENCE LIMITED,IT Management and Change
FCO,FCO,23/04/2021,11166936,"69,415.84",TEAM LEYLAND INTERNATIONAL LTD,Additions-Assets Under Construction (Oracle PA Control Account)
FCO,FCO,14/04/2021,11157597,"69,056.98",DAI GLOBAL UK LTD,Programme Spend (Oracle Projects Control Account)
FCO,FCO,09/04/2021,11151453,"68,910.00",INSTITUTE FOR DEVELOPMENT STUDIES,Programme Spend (Oracle Projects Control Account)
FCO,FCO,06/04/2021,11144058,"68,485.00",AXIOM INTERNATIONAL LTD,Programme Spend (Oracle Projects Control Account)
FCO,FCO,29/04/2021,11172392,"68,424.38",MERCY CORPS,Programme Spend (Oracle Projects Control Account)
FCO,FCO,26/04/2021,11168167,"67,819.71",EUROPEAN SPACE AGENCY,Protocol - General VAT Refunds to Other Organisations
FCO,FCO,15/04/2021,11158893,"67,765.12",PROMOCIONES INMOBILIARIAS DE REFORMA SA DE CV,Rental Payments - non residential
FCO,FCO,09/04/2021,11151396,"67,640.53",ABSOLUTE INSURANCE LIMITED,Rental Payments - residential
FCO,FCO,01/04/2021,11141398,"67,625.00",ORE CATAPULT LTD,Multiple Accounts
FCO,FCO,06/04/2021,11143568,"67,625.00",ORE CATAPULT LTD,Multiple Accounts
FCO,FCO,09/04/2021,11151517,"67,455.70",SAYARA INTERNATIONAL,Programme Spend (Oracle Projects Control Account)
FCO,FCO,06/04/2021,11143808,"67,296.18",FCDO POSTS,Funding Overseas Posts
FCO,FCO,12/04/2021,11153750,"67,182.82",THE BRITISH COUNCIL,Programme Spend (Oracle Projects Control Account)
FCO,FCO,09/04/2021,11151045,"66,996.92",BAE SYSTEMS APPLIED INTELLIGENCE LIMITED,IT Management and Change
FCO,FCO,07/04/2021,11146831,"66,948.66",ACCOMMODATION PROVIDER,Rental Payments - residential
FCO,FCO,15/04/2021,11158566,"66,740.98",TORCHLIGHT SOLUTIONS LTD,Programme Spend (Oracle Projects Control Account)
FCO,FCO,06/04/2021,11143681,"66,506.71",FCDO POSTS,Funding Overseas Posts
FCO,FCO,30/04/2021,11174004,"66,379.50",COMPUTACENTER UK LTD,Additions-Assets Under Construction (Oracle PA Control Account)
FCO,FCO,27/04/2021,11169862,"66,378.71",SOCIAL SECURITY CONTRIBTN AUTHORITY,Multiple Accounts
FCO,FCO,06/04/2021,11143647,"66,365.23",FCDO POSTS,Funding Overseas Posts
FCO,FCO,16/04/2021,11159955,"66,323.16",MINIMAL RISK CONSULTANCY LTD,Additions-Assets Under Construction (Oracle PA Control Account)
FCO,FCO,06/04/2021,11143844,"65,977.89",FCDO POSTS,Funding Overseas Posts
FCO,FCO,14/04/2021,11157127,"65,786.99",JLL PROPERTY CONSULTANTS PTE LTD POE,FMCU POE Trust Account Debtor
FCO,FCO,06/04/2021,11143651,"65,635.94",FCDO POSTS,Funding Overseas Posts
FCO,FCO,20/04/2021,11162322,"65,635.94",ACCOMMODATION PROVIDER,UK Guarding Contracts Overseas
FCO,FCO,15/04/2021,11158725,"65,440.21",BAE SYSTEMS APPLIED INTELLIGENCE LIMITED,IT Management and Change
FCO,FCO,06/04/2021,11144703,"65,000.00",FCDO SERVICES,Additions-Assets Under Construction (Oracle PA Control Account)
FCO,FCO,14/04/2021,11157453,"65,000.00",ERNST AND YOUNG LLP,Programme Spend (Oracle Projects Control Account)
FCO,FCO,20/04/2021,11162280,"64,715.35",INSTITUT FOR SECURITY STUDIES,Programme Spend (Oracle Projects Control Account)
FCO,FCO,15/04/2021,11158524,"64,665.42",BRIGHT HORIZONS FAMILY SOLUTION LTD,FCO KCS Nursery
FCO,FCO,26/04/2021,11168168,"64,574.67",UNDP CONTRIBUTIONS,Programme Spend (Oracle Projects Control Account)
FCO,FCO,20/04/2021,11162436,"64,279.46",KAMAR BUSINESS CENTER CJSC,Rental Payments - non residential
FCO,FCO,21/04/2021,11164118,"64,222.85",INTERSERVE FM LTD,Residential Property Services
FCO,FCO,14/04/2021,11157458,"64,131.00",ITAD LTD,Programme Spend (Oracle Projects Control Account)
FCO,FCO,22/04/2021,11165784,"64,055.14",SENSETECH SYSTEMS,Additions-Assets Under Construction (Oracle PA Control Account)
FCO,FCO,19/04/2021,11161484,"64,004.30",BBC MEDIA ACTION,Programme Spend (Oracle Projects Control Account)
FCO,FCO,20/04/2021,11162557,"63,885.00",INNOVATION AND INSIGHT FZE,Programme Spend (Oracle Projects Control Account)
FCO,FCO,07/04/2021,11146930,"63,781.49",THE GLOBAL STRATEGY NETWORK,Programme Spend (Oracle Projects Control Account)
FCO,FCO,12/04/2021,11154224,"63,669.55",MERITAIN HEALTH,Multiple Accounts
FCO,FCO,06/04/2021,11144538,"63,277.42",FROST AND SULLIVAN INSTITUTE,Programme Spend (Oracle Projects Control Account)
FCO,FCO,19/04/2021,11161161,"62,868.64",ADAM SMITH INTERNATIONAL,Programme Spend (Oracle Projects Control Account)
FCO,FCO,29/04/2021,11172430,"62,304.02",THE ROYAL BANK OF SCOTLAND,Multiple Accounts
FCO,FCO,30/04/2021,11173975,"62,117.03",GCHQ NCSC,Programme Spend (Oracle Projects Control Account)
FCO,FCO,16/04/2021,11159999,"61,500.00",KPMG LLP,Programme Spend (Oracle Projects Control Account)
FCO,FCO,30/04/2021,11173934,"61,420.00",OVERSEAS DEVELOPMENT INSTITUTE,Programme Spend (Oracle Projects Control Account)
FCO,FCO,06/04/2021,11144671,"61,340.00",FCDO SERVICES,Additions-Assets Under Construction (Oracle PA Control Account)
FCO,FCO,06/04/2021,11143616,"61,309.77",FIDELIDADE,Multiple Accounts
FCO,FCO,15/04/2021,11158611,"61,260.21",FCDO POSTS,Funding Overseas Posts
FCO,FCO,06/04/2021,11143564,"61,000.00",CABINET OFFICE,Programme Spend (Oracle Projects Control Account)
FCO,FCO,30/04/2021,11173722,"60,965.03",THE HUMAN DIGNITY TRUST,Programme Spend (Oracle Projects Control Account)
FCO,FCO,16/04/2021,11159698,"60,690.00",RAMBOLL UK LTD,Repairs And Refurbishment: Works Residential
FCO,FCO,13/04/2021,11155594,"60,666.10",ISS FACILITY SERVICES LTD FCO OP - POE,Multiple Accounts
FCO,FCO,13/04/2021,11155578,"59,800.60",PENAL REFORM INTERNATIONAL,Programme Spend (Oracle Projects Control Account)
FCO,FCO,21/04/2021,11164250,"59,530.08",INTERSERVE FM LTD,Additions-Assets Under Construction (Oracle PA Control Account)
FCO,FCO,14/04/2021,11157448,"59,500.00",ERNST AND YOUNG LLP,Programme Spend (Oracle Projects Control Account)
FCO,FCO,06/04/2021,11144175,"59,186.62",COMPUTACENTER UK LTD,End User Software and Hardware
FCO,FCO,15/04/2021,11158518,"59,027.98",MEDICINES AND HEALTHCARE PRODUCTS REGULATORY AGENCY (MHRA),Programme Spend (Oracle Projects Control Account)
FCO,FCO,06/04/2021,11144461,"58,983.55",FCDO SERVICES,Additions-Assets Under Construction (Oracle PA Control Account)
FCO,FCO,15/04/2021,11158807,"58,933.49",FUNDACION IDEAS PARA LA PAZ,Programme Spend (Oracle Projects Control Account)
FCO,FCO,15/04/2021,11158398,"58,866.28",SEARCH FOR COMMON GROUND,Programme Spend (Oracle Projects Control Account)
FCO,FCO,06/04/2021,11144846,"58,818.00",FCDO SERVICES,Additions-Assets Under Construction (Oracle PA Control Account)
FCO,FCO,09/04/2021,11150755,"58,803.19",WALSONS SERVICES PVT LTD,Local Guards
FCO,FCO,14/04/2021,11157238,"58,278.53",COMPUTACENTER UK LTD,IT/IS Consultancy
FCO,FCO,21/04/2021,11164252,"58,161.88",INTERSERVE FM LTD,Construction Project more than 10k
FCO,FCO,20/04/2021,11162814,"57,587.34",SSK,Multiple Accounts
FCO,FCO,21/04/2021,11164361,"57,291.05",COMMONWEALTH SECRETARIAT,Programme Spend (Oracle Projects Control Account)
FCO,FCO,21/04/2021,11164073,"57,075.67",INTERSERVE FM LTD,Multiple Accounts
FCO,FCO,06/04/2021,11143653,"56,884.48",FCDO POSTS,Funding Overseas Posts
FCO,FCO,15/04/2021,11158812,"56,814.51",GILBERT ASH LIMITED,Additions-Assets Under Construction (Oracle PA Control Account)
FCO,FCO,16/04/2021,11159839,"56,758.75",IMC WORLDWIDE LTD,Programme Spend (Oracle Projects Control Account)
FCO,FCO,26/04/2021,11168145,"56,331.18",BELASTINGDIENST CENTRALE ADMINISTRATIE TE APELDOORN,Multiple Accounts
FCO,FCO,09/04/2021,11151015,"56,188.00",INSTITUT FRANCAIS,Language Tuition: Essential
FCO,FCO,14/04/2021,11157446,"56,000.00",ERNST AND YOUNG LLP,Programme Spend (Oracle Projects Control Account)
FCO,FCO,09/04/2021,11151528,"55,883.91",RESTORE PLC,Specialist Contractors
FCO,FCO,20/04/2021,11162364,"55,800.00",SYNERGY FOR JUSTICE LTD,Programme Spend (Oracle Projects Control Account)
FCO,FCO,20/04/2021,11162437,"55,591.12",SISTEMA INTEGRADO MULTIPLE DE PAGOS,Multiple Accounts
FCO,FCO,13/04/2021,11155911,"55,521.69",UNITED NATIONS,Programme Spend (Oracle Projects Control Account)
FCO,FCO,30/04/2021,11173727,"55,436.45",CHINA LABOUR BULLETIN OB FAIR CHINA DEVELOPMENT LIMITED,Programme Spend (Oracle Projects Control Account)
FCO,FCO,26/04/2021,11168032,"55,383.85",SOUTH REVENUE SERVICE,Multiple Accounts
FCO,FCO,13/04/2021,11155488,"55,289.24",FI FASTEIGNAFELAG SLHF,Rental Payments - non residential
FCO,FCO,06/04/2021,11144923,"55,244.87",FCDO SERVICES,Additions-Assets Under Construction (Oracle PA Control Account)
FCO,FCO,06/04/2021,11144032,"55,108.00",INTERNATIONAL ENERGY AGENCY,Programme Spend (Oracle Projects Control Account)
FCO,FCO,19/04/2021,11161385,"54,998.75",ITAD LTD,Programme Spend (Oracle Projects Control Account)
FCO,FCO,09/04/2021,11150982,"54,914.83",MAZARS CINOTTI ACCOUNTING DOO,Multiple Accounts
FCO,FCO,06/04/2021,11143645,"54,696.62",FCDO POSTS,Funding Overseas Posts
FCO,FCO,14/04/2021,11157163,"54,621.32",AXA WINTERTHUR PENSION COLUMNA,Multiple Accounts
FCO,FCO,28/04/2021,11171111,"54,436.11",COMMONWEALTH SECRETARIAT,Programme Spend (Oracle Projects Control Account)
FCO,FCO,21/04/2021,11164102,"54,115.08",INTERSERVE FM LTD,Construction Project more than 10k
FCO,FCO,06/04/2021,11144658,"54,000.00",FCDO SERVICES,Additions-Assets Under Construction (Oracle PA Control Account)
FCO,FCO,23/04/2021,11166611,"54,000.00",ELASTICSEARCH LTD,End User Software and Hardware
FCO,FCO,06/04/2021,11144370,"53,753.00",FCDO SERVICES,Additions-Assets Under Construction (Oracle PA Control Account)
FCO,FCO,22/04/2021,11165791,"53,602.68",EMERSON COLLEGE,Recharge Suspense Account (Oracle PA Control Account)
FCO,FCO,26/04/2021,11168211,"53,477.80",SECUREX AGENCIES LTD,Multiple Accounts
FCO,FCO,15/04/2021,11158657,"53,398.27",FCDO POSTS,Funding Overseas Posts
FCO,FCO,06/04/2021,11144311,"53,314.23",THE BRITISH COUNCIL,Programme Spend (Oracle Projects Control Account)
FCO,FCO,06/04/2021,11144510,"53,172.00",FCDO SERVICES,Additions-Assets Under Construction (Oracle PA Control Account)
FCO,FCO,29/04/2021,11172777,"53,115.78",SAINT HELENA GOVERNMENT,Programme Spend (Oracle Projects Control Account)
FCO,FCO,15/04/2021,11158844,"52,894.00",ECORYS UK LTD,Programme Spend (Oracle Projects Control Account)
FCO,FCO,06/04/2021,11144579,"52,873.62",Nanny Cay Hotel and Marina,Programme Spend (Oracle Projects Control Account)
FCO,FCO,08/04/2021,11150081,"52,873.62",Nanny Cay Hotel and Marina,Programme Spend (Oracle Projects Control Account)
FCO,FCO,06/04/2021,11144254,"52,548.00",FCDO SERVICES,Construction Project more than 10k
FCO,FCO,19/04/2021,11161283,"52,395.36",ISS FACILITY SERVICES LTD FCO OP,Multiple Accounts
FCO,FCO,07/04/2021,11147886,"52,246.20",AETNA,Multiple Accounts
FCO,FCO,05/04/2021,11142935,"52,179.32",BEDER,Programme Spend (Oracle Projects Control Account)
FCO,FCO,09/04/2021,11150999,"52,137.54",JLL PROPERTY CONSULTANTS PTE LTD,Estates Management Services
FCO,FCO,16/04/2021,11159774,"52,137.54",JLL PROPERTY CONSULTANTS PTE LTD,Estates Management Services
FCO,FCO,30/04/2021,11173927,"51,675.00",M AND C SAATCHI,Programme Spend (Oracle Projects Control Account)
FCO,FCO,15/04/2021,11158545,"51,459.87",SEARCH FOR COMMON GROUND,Programme Spend (Oracle Projects Control Account)
FCO,FCO,07/04/2021,11147702,"51,365.59",ACCL INTERNATIONAL KABUL,Fuel Oil Residential
FCO,FCO,28/04/2021,11171473,"51,343.57",KPMG LLP,Technical Consultancy
FCO,FCO,09/04/2021,11151072,"50,992.00",BIRN SERBIA,Programme Spend (Oracle Projects Control Account)
FCO,FCO,23/04/2021,11166893,"50,978.73",SECURITAS SAC,Local Guards
FCO,FCO,06/04/2021,11144438,"50,734.67",FCDO SERVICES,Security: Works Residential
FCO,FCO,23/04/2021,11166682,"50,633.10",ACCOUNTING SOLUTIONS,Multiple Accounts
FCO,FCO,06/04/2021,11144446,"50,534.07",KAINOS SOFTWARE LTD,Additions-Assets Under Construction (Oracle PA Control Account)
FCO,FCO,21/04/2021,11164658,"50,418.00",ERNST AND YOUNG LLP,Programme Spend (Oracle Projects Control Account)
FCO,FCO,30/04/2021,11173621,"50,110.55",THE BRITISH COUNCIL,Programme Spend (Oracle Projects Control Account)
FCO,FCO,26/04/2021,11168039,"50,027.27",CONTRIBUTORY PROVIDENT FUND,Multiple Accounts
FCO,FCO,26/04/2021,11168079,"49,792.25",TETRA TECH MANAGEMENT SERVICES LIMITED,Additions-Assets Under Construction (Oracle PA Control Account)
FCO,FCO,21/04/2021,11164663,"49,745.18",INTERSERVE FM LTD,Catering Services
FCO,FCO,06/04/2021,11143677,"49,591.60",FCDO POSTS,Funding Overseas Posts
FCO,FCO,06/04/2021,11143980,"49,591.60",FCDO POSTS,Funding Overseas Posts
FCO,FCO,30/04/2021,11173606,"49,503.76",EXPERTISE FRANCE,Programme Spend (Oracle Projects Control Account)
FCO,FCO,29/04/2021,11172781,"49,409.79",DAI GLOBAL UK LTD,Programme Spend (Oracle Projects Control Account)
FCO,FCO,14/04/2021,11157581,"49,348.21",CABINET OFFICE,IT Management and Change
FCO,FCO,06/04/2021,11143884,"49,185.37",FCDO SERVICES,Construction Project more than 10k
FCO,FCO,12/04/2021,11153979,"49,146.64",TORCHLIGHT SOLUTIONS LTD,Programme Spend (Oracle Projects Control Account)
FCO,FCO,29/04/2021,11172790,"49,136.00",ERNST AND YOUNG LLP,Organisation and Change Management Consultancy
FCO,FCO,19/04/2021,11161289,"49,077.19",ISS FACILITY SERVICES LTD FCO OP,Multiple Accounts
FCO,FCO,12/04/2021,11153868,"48,908.24",Alexander Mann Solutions Limited,Organisation and Change Management Consultancy
FCO,FCO,30/04/2021,11173999,"48,735.00",INTERNTL COMMISSION MISSING PERSONS,Programme Spend (Oracle Projects Control Account)
FCO,FCO,28/04/2021,11171474,"48,731.70",Pace Construction,Programme Spend (Oracle Projects Control Account)
FCO,FCO,19/04/2021,11161149,"48,574.00",INTERNATIONAL IDEA,Programme Spend (Oracle Projects Control Account)
FCO,FCO,08/04/2021,11149761,"48,568.77",HOME OFFICE,Misc Expenditure (only to be used if no other suitable account)
FCO,FCO,22/04/2021,11165746,"48,541.95",MERITAIN HEALTH,Multiple Accounts
FCO,FCO,27/04/2021,11169929,"48,428.35",ERNST AND YOUNG LLP,Programme Spend (Oracle Projects Control Account)
FCO,FCO,27/04/2021,11169937,"48,428.35",ERNST AND YOUNG LLP,Programme Spend (Oracle Projects Control Account)
FCO,FCO,27/04/2021,11169940,"48,428.35",ERNST AND YOUNG LLP,Programme Spend (Oracle Projects Control Account)
FCO,FCO,27/04/2021,11169944,"48,428.35",ERNST AND YOUNG LLP,Programme Spend (Oracle Projects Control Account)
FCO,FCO,27/04/2021,11169948,"48,428.35",ERNST AND YOUNG LLP,Programme Spend (Oracle Projects Control Account)
FCO,FCO,07/04/2021,11146856,"48,174.00",ERNST AND YOUNG LLP,Programme Spend (Oracle Projects Control Account)
FCO,FCO,26/04/2021,11168106,"48,114.00",CAMBRIDGE INFORMATION LIMITED,End User Software and Hardware
FCO,FCO,30/04/2021,11173911,"48,100.00",FRESH AIR PRODUCTION,Programme Spend (Oracle Projects Control Account)
FCO,FCO,26/04/2021,11168467,"48,077.96",HEALIX INTERNATIONAL LTD,Hospital/Specialist Treatment
FCO,FCO,07/04/2021,11147418,"48,028.26",EUROPEAN SPACE AGENCY,Protocol - General VAT Refunds to Other Organisations
FCO,FCO,19/04/2021,11161377,"48,000.00",AECOM,Additions-Assets Under Construction (Oracle PA Control Account)
FCO,FCO,01/04/2021,11132050,"47,960.00",LANDGUARD SYSTEMS LIMITED,Security: Works Non-Residential
FCO,FCO,21/04/2021,11164147,"47,758.58",INTERSERVE FM LTD,Construction Project more than 10k
FCO,FCO,01/04/2021,11138843,"47,725.22",CARBON TRUST ADVISORY LTD,Programme Spend (Oracle Projects Control Account)
FCO,FCO,26/04/2021,11168076,"47,725.22",CARBON TRUST ADVISORY LTD,Programme Spend (Oracle Projects Control Account)
FCO,FCO,21/04/2021,11164228,"47,650.80",FCDO SERVICES,Customer Refund Account
FCO,FCO,21/04/2021,11164586,"47,628.49",JONES LANG LASALLE,Multiple Accounts
FCO,FCO,09/04/2021,11151117,"47,583.74",GET SAFE ONLINE,Programme Spend (Oracle Projects Control Account)
FCO,FCO,21/04/2021,11164127,"47,564.29",INTERSERVE FM LTD,Construction Project more than 10k
FCO,FCO,30/04/2021,11173759,"47,542.00",THE HALO TRUST,Programme Spend (Oracle Projects Control Account)
FCO,FCO,21/04/2021,11164601,"47,501.16",FCDO SERVICES,Site Maintenance
FCO,FCO,20/04/2021,11162861,"47,410.47",TETRA TECH INTERNATIONAL DEVELOPMENT,Programme Spend (Oracle Projects Control Account)
FCO,FCO,26/04/2021,11168274,"47,168.88",KPMG FIDUCIAIRE,Multiple Accounts
FCO,FCO,16/04/2021,11159759,"47,112.02",ALMAWRED FOR EDU CONSULTANCY,Programme Spend (Oracle Projects Control Account)
FCO,FCO,06/04/2021,11144663,"47,000.00",FCDO SERVICES,Additions-Assets Under Construction (Oracle PA Control Account)
FCO,FCO,13/04/2021,11155104,"46,731.31",PALM SOLAR SYSTEMS LLC,Additions-Assets Under Construction (Oracle PA Control Account)
FCO,FCO,06/04/2021,11144457,"46,532.49",COMPUTACENTER UK LTD,IT Management and Change
FCO,FCO,06/04/2021,11144067,"46,517.50",PRICEWATERHOUSECOOPERS LLP,Programme Spend (Oracle Projects Control Account)
FCO,FCO,13/04/2021,11155565,"46,178.85",ALBANY ASSOCIATES,Programme Spend (Oracle Projects Control Account)
FCO,FCO,13/04/2021,11156539,"46,159.00",FREE FIELDS FOUNDATION,Programme Spend (Oracle Projects Control Account)
FCO,FCO,14/04/2021,11157697,"46,051.14",ZAVOD ZA VODOPRIVREDU DD SARAJEVO,Multiple Accounts
FCO,FCO,07/04/2021,11146952,"46,029.24",FIVIUM LIMITED,Specialist Software and Hardware
FCO,FCO,06/04/2021,11143898,"45,965.70",FCDO SERVICES,Multiple Accounts
FCO,FCO,13/04/2021,11155893,"45,933.99",HEALIX INTERNATIONAL LTD,Hospital/Specialist Treatment
FCO,FCO,09/04/2021,11151834,"45,689.54",AETNA,Multiple Accounts
FCO,FCO,19/04/2021,11161328,"45,594.39",ISS FACILITY SERVICES LTD FCO OP,Multiple Accounts
FCO,FCO,23/04/2021,11166674,"45,581.00",MOD MINISTRY OF DEFENCE,Consular Crisis Expenditure
FCO,FCO,23/04/2021,11166507,"45,578.30",FCDO SERVICES,Additions-Assets Under Construction (Oracle PA Control Account)
FCO,FCO,08/04/2021,11149593,"45,558.80",DX NETWORK SERVICES,Postal Services
FCO,FCO,21/04/2021,11164568,"45,491.49",BESTCOMP GROUP LLC,Recharge Suspense Account (Oracle PA Control Account)
FCO,FCO,21/04/2021,11164229,"45,476.29",INTERSERVE FM LTD,Additions-Assets Under Construction (Oracle PA Control Account)
FCO,FCO,19/04/2021,11161341,"45,471.63",ISS FACILITY SERVICES LTD FCO OP,Multiple Accounts
FCO,FCO,21/04/2021,11164618,"45,433.84",DIPSERVICE,Rental Payments - non residential
FCO,FCO,06/04/2021,11143740,"45,330.14",FCDO POSTS,Funding Overseas Posts
FCO,FCO,14/04/2021,11157554,"45,005.83",AFGHAN KNOWLEDGE SOLUTION,Programme Spend (Oracle Projects Control Account)
FCO,FCO,06/04/2021,11144607,"45,000.00",PRICEWATERHOUSECOOPERS LLP,Programme Spend (Oracle Projects Control Account)
FCO,FCO,14/04/2021,11157133,"44,908.56",JLL PROPERTY CONSULTANTS PTE LTD POE,FMCU POE Trust Account Debtor
FCO,FCO,06/04/2021,11144436,"44,788.39",KAINOS SOFTWARE LTD,Additions-Assets Under Construction (Oracle PA Control Account)
FCO,FCO,06/04/2021,11143561,"44,750.00",CABINET OFFICE,Programme Spend (Oracle Projects Control Account)
FCO,FCO,06/04/2021,11143666,"44,486.58",FCDO POSTS,Funding Overseas Posts
FCO,FCO,06/04/2021,11143676,"44,486.58",FCDO POSTS,Funding Overseas Posts
FCO,FCO,20/04/2021,11162581,"44,466.92",TORCHLIGHT SOLUTIONS LTD,Programme Spend (Oracle Projects Control Account)
FCO,FCO,08/04/2021,11149570,"44,377.50",PRICEWATERHOUSECOOPERS LLP,Programme Spend (Oracle Projects Control Account)
FCO,FCO,20/04/2021,11162604,"44,092.00",ERNST AND YOUNG LLP,Programme Spend (Oracle Projects Control Account)
FCO,FCO,19/04/2021,11161281,"44,016.75",HARIS ENTERPRISES PVT LTD,Local Guards
FCO,FCO,15/04/2021,11158745,"43,895.75",ALBANY ASSOCIATES,Programme Spend (Oracle Projects Control Account)
FCO,FCO,26/04/2021,11168575,"43,881.62",DOM VOLVO CAR,Multiple Accounts
FCO,FCO,29/04/2021,11172841,"43,757.29",ACCOMMODATION PROVIDER,Rental Payments - residential
FCO,FCO,06/04/2021,11144291,"43,630.63",IIZUKA,IT Hosting
FCO,FCO,27/04/2021,11169974,"43,630.63",IIZUKA,IT Hosting
FCO,FCO,14/04/2021,11157551,"43,588.83",AFGHAN KNOWLEDGE SOLUTION,Programme Spend (Oracle Projects Control Account)
FCO,FCO,29/04/2021,11172124,"43,547.21",PILGRIMS AFRICA LTD,Local Guards
FCO,FCO,21/04/2021,11163902,"43,271.47",TRESOR PUBLIC,Multiple Accounts
FCO,FCO,21/04/2021,11164247,"43,173.96",INTERSERVE FM LTD,Construction Project more than 10k
FCO,FCO,06/04/2021,11143552,"42,900.00",CABINET OFFICE,Programme Spend (Oracle Projects Control Account)
FCO,FCO,06/04/2021,11144173,"42,819.82",ASIAN TRADE CENTRE,Programme Spend (Oracle Projects Control Account)
FCO,FCO,06/04/2021,11143735,"42,764.28",FCDO POSTS,Funding Overseas Posts
FCO,FCO,13/04/2021,11155608,"42,754.41",ISS FACILITY SERVICES LTD FCO OP - POE,Multiple Accounts
FCO,FCO,06/04/2021,11143847,"42,614.94",FCDO POSTS,Funding Overseas Posts
FCO,FCO,08/04/2021,11149671,"42,294.00",WESTMINSTER CITY COUNCIL,Rates Taxes Non-Residential
FCO,FCO,30/04/2021,11174022,"42,294.00",WESTMINSTER CITY COUNCIL,Rates Taxes Non-Residential
FCO,FCO,26/04/2021,11168169,"42,000.00",PEACE OPERATIONS TRAINING INSTITUTE,Programme Spend (Oracle Projects Control Account)
FCO,FCO,26/04/2021,11168027,"41,766.23",DISCOVERY MEDICAL AID,Multiple Accounts
FCO,FCO,26/04/2021,11168096,"41,765.40",FCDO SERVICES,Air Freight Dip Bags - Freight & Clearance Charges
FCO,FCO,06/04/2021,11144722,"41,747.50",FCDO SERVICES,Additions-Assets Under Construction (Oracle PA Control Account)
FCO,FCO,05/04/2021,11142814,"41,695.62",THE GALLERIA INVESTMENTS LLC,Rental Payments - residential
FCO,FCO,08/04/2021,11149298,"41,589.00",ECLIPSE DIGITAL SOLUTIONS LIMITED,Site Maintenance
FCO,FCO,12/04/2021,11154029,"41,575.00",COMPANY X CONSULTING LTD,Programme Spend (Oracle Projects Control Account)
FCO,FCO,06/04/2021,11144387,"41,569.43",GRAN LONKO COMERCIAL,Rental Payments - residential
FCO,FCO,29/04/2021,11172259,"41,536.11",ITAD LTD,Programme Spend (Oracle Projects Control Account)
FCO,FCO,23/04/2021,11166667,"41,462.52",CAISSE CANTONALE GENEVOISE COMPEN,Multiple Accounts
FCO,FCO,20/04/2021,11162377,"41,365.60",TEAM 3 LIMITED,Local Guards
FCO,FCO,21/04/2021,11163835,"41,216.31",OEGK OESTERR GESUNDHEITSKASSE,Multiple Accounts
FCO,FCO,27/04/2021,11169857,"41,174.07",OTIS ELEVATOR COMPANY,Property Maintenance Overseas Non Residential
FCO,FCO,26/04/2021,11168221,"41,117.68",TETRA TECH MANAGEMENT SERVICES LIMITED,Multiple Accounts
FCO,FCO,27/04/2021,11169374,"41,053.71",ACCOMMODATION PROVIDER,Programme Spend (Oracle Projects Control Account)
FCO,FCO,07/04/2021,11147891,"40,977.06",HOLDING IMMOBILIARE PALLAVICINI SPA,Rental Payments - residential
FCO,FCO,08/04/2021,11149827,"40,955.90",BYTES SOFTWARE SERVICES LTD,End User Software and Hardware
FCO,FCO,06/04/2021,11144367,"40,811.00",FCDO SERVICES,Additions-Assets Under Construction (Oracle PA Control Account)
FCO,FCO,27/04/2021,11170053,"40,657.44",THE THOMSON FOUNDATION,Programme Spend (Oracle Projects Control Account)
FCO,FCO,08/04/2021,11149883,"40,633.80",HAYS SPECIALIST RECRUITMENT LTD,Specialist Contractors
FCO,FCO,19/04/2021,11160966,"40,448.04",SRR CASH BOX TOP UP,Inter Account Transfer (Cash in Transit)
FCO,FCO,08/04/2021,11149602,"40,369.01",DX NETWORK SERVICES,Postal Services
FCO,FCO,22/04/2021,11165523,"40,302.57",BABCOCK VEHICLE ENGINEERING LTD,Vehicle Maintenance
FCO,FCO,21/04/2021,11164309,"40,253.58",INTERSERVE FM LTD,Multiple Accounts
FCO,FCO,06/04/2021,11144506,"40,097.00",FCDO SERVICES,Additions-Assets Under Construction (Oracle PA Control Account)
FCO,FCO,16/04/2021,11159768,"40,013.89",GLOBAL PARTNERS GOVERNANCE PRACTICE LTD,Programme Spend (Oracle Projects Control Account)
FCO,FCO,19/04/2021,11161393,"39,966.00",ARK GROUP DMCC,Programme Spend (Oracle Projects Control Account)
FCO,FCO,26/04/2021,11168018,"39,944.42",ALEXANDER FORBES LIFE,Multiple Accounts
FCO,FCO,08/04/2021,11149750,"39,933.00",RSM RISK ASSURANCE SERVICES LLP,Specialist Contractors
FCO,FCO,28/04/2021,11171466,"39,865.35",BENNETT CONSTRUCTION COMPANY LTD,Programme Spend (Oracle Projects Control Account)
FCO,FCO,26/04/2021,11168226,"39,725.00",WORLDREACH SOFTWARE CORPORATION,IT Hosting
FCO,FCO,06/04/2021,11144604,"39,720.78",THE BRITISH COUNCIL,Programme Spend (Oracle Projects Control Account)
FCO,FCO,06/04/2021,11144832,"39,716.20",FCDO SERVICES,Construction Project more than 10k
FCO,FCO,26/04/2021,11168091,"39,474.00",FCDO SERVICES,IT/IS Consultancy
FCO,FCO,21/04/2021,11164458,"39,456.47",TETRA TECH INTERNATIONAL DEVELOPMENT,Programme Spend (Oracle Projects Control Account)
FCO,FCO,27/04/2021,11170061,"39,420.00",DIPLOMATIC MISSION SUPPLIES LTD,"Purchase of Furniture, Fittings and Domestic Appliances"
FCO,FCO,19/04/2021,11161306,"39,407.19",ISS FACILITY SERVICES LTD FCO OP,Multiple Accounts
FCO,FCO,21/04/2021,11164254,"39,405.80",INTERSERVE FM LTD,Construction Project more than 10k
FCO,FCO,28/04/2021,11171505,"39,381.56",ACCOMMODATION PROVIDER,Rental Payments - residential
FCO,FCO,01/04/2021,11133806,"39,260.12",TENAX LTD,"Purchase of Furniture, Fittings and Domestic Appliances"
FCO,FCO,06/04/2021,11144180,"39,219.31",COMPUTACENTER UK LTD,End User Software and Hardware
FCO,FCO,15/04/2021,11158569,"39,114.85",BAE SYSTEMS APPLIED INTELLIGENCE LIMITED,IT Management and Change
FCO,FCO,07/04/2021,11146953,"38,965.20",TENAX LTD,"Purchase of Furniture, Fittings and Domestic Appliances"
FCO,FCO,06/04/2021,11144503,"38,532.00",FCDO SERVICES,Additions-Assets Under Construction (Oracle PA Control Account)
FCO,FCO,06/04/2021,11143734,"38,487.85",FCDO POSTS,Funding Overseas Posts
FCO,FCO,15/04/2021,11158380,"38,458.46",ACCOMMODATION PROVIDER,Rental Payments - residential
FCO,FCO,27/04/2021,11169430,"38,365.04",PIO FBIH,Multiple Accounts
FCO,FCO,27/04/2021,11169396,"38,360.86",G4S SECURITY SERVICES UGANDA LTD,Local Guards
FCO,FCO,12/04/2021,11154078,"38,200.00",THE OPINION RESEARCH BUSINESS,Programme Spend (Oracle Projects Control Account)
FCO,FCO,28/04/2021,11171140,"38,135.00",TRICIS LTD,Security: Works Non-Residential
FCO,FCO,21/04/2021,11164231,"37,979.74",INTERSERVE FM LTD,Additions-Assets Under Construction (Oracle PA Control Account)
FCO,FCO,28/04/2021,11171465,"37,801.17",BENNETT CONSTRUCTION COMPANY LTD,Programme Spend (Oracle Projects Control Account)
FCO,FCO,30/04/2021,11173684,"37,799.74",ATKINS LTD,Estates Management Services
FCO,FCO,19/04/2021,11161415,"37,794.59",TETRA TECH INTERNATIONAL DEVELOPMENT,Programme Spend (Oracle Projects Control Account)
FCO,FCO,26/04/2021,11168147,"37,567.71",INTERNATIONAL FINANCE CORPORATION,Protocol - General VAT Refunds to Other Organisations
FCO,FCO,29/04/2021,11172880,"37,270.38",INTERNATIONAL SUGAR,Protocol - General VAT Refunds to Other Organisations
FCO,FCO,09/04/2021,11151473,"37,225.33",ITAD LTD,Programme Spend (Oracle Projects Control Account)
FCO,FCO,14/04/2021,11157508,"37,203.75",ACCOMMODATION PROVIDER,Multiple Accounts
FCO,FCO,29/04/2021,11172279,"37,168.92",PICKFORDS MOVE MANAGEMENT LTD,Heavy Baggage
FCO,FCO,15/04/2021,11158583,"37,128.83",ERNST AND YOUNG LLP,Programme Spend (Oracle Projects Control Account)
FCO,FCO,19/04/2021,11160974,"37,043.58",AL TAYER MOTORS LLC,Recharge Suspense Account (Oracle PA Control Account)
FCO,FCO,21/04/2021,11164536,"36,804.59",INSTITUTO DE GESTAO FINANCEIRA DA SEGURANCA SOCIAL,Multiple Accounts
FCO,FCO,06/04/2021,11144182,"36,803.62",KOIZA INTERNATIONAL LTD,"Purchase of Furniture, Fittings and Domestic Appliances"
FCO,FCO,27/04/2021,11170111,"36,757.64",THE BRITISH COUNCIL,Programme Spend (Oracle Projects Control Account)
FCO,FCO,27/04/2021,11170170,"36,678.79",BAE SYSTEMS APPLIED INTELLIGENCE LIMITED,IT Management and Change
FCO,FCO,06/04/2021,11143866,"36,659.63",TORCHLIGHT SOLUTIONS LTD,Recharge Suspense Account (Oracle PA Control Account)
FCO,FCO,22/04/2021,11165180,"36,631.07",SHANGRILA ULAANBAATAR HOTEL LLC,Rental Payments - residential
FCO,FCO,16/04/2021,11160212,"36,420.65",ENECO BELGIUM NV,Multiple Accounts
FCO,FCO,05/04/2021,11143124,"36,143.28",PWC POLAND,Programme Spend (Oracle Projects Control Account)
FCO,FCO,26/04/2021,11168097,"36,137.46",TETRA TECH MANAGEMENT SERVICES LIMITED,Additions-Assets Under Construction (Oracle PA Control Account)
FCO,FCO,06/04/2021,11143815,"35,965.51",FCDO POSTS,Funding Overseas Posts
FCO,FCO,21/04/2021,11164446,"35,938.80",TETRA TECH INTERNATIONAL DEVELOPMENT,Programme Spend (Oracle Projects Control Account)
FCO,FCO,29/04/2021,11172805,"35,899.02",BRICKELL BAY TOWER LTD,Multiple Accounts
FCO,FCO,06/04/2021,11143981,"35,880.98",FCDO POSTS,Funding Overseas Posts
FCO,FCO,05/04/2021,11142846,"35,763.75",TALLIS AMOS GROUP,Additions-Assets Under Construction (Oracle PA Control Account)
FCO,FCO,13/04/2021,11155713,"35,673.21",SATELLITE APPLICATIONS CATAPULT LTD,Programme Spend (Oracle Projects Control Account)
FCO,FCO,08/04/2021,11149519,"35,605.84",BAE SYSTEMS APPLIED INTELLIGENCE LIMITED,IT Management and Change
FCO,FCO,22/04/2021,11165418,"35,583.91",PACT GLOBAL UK CIO,Programme Spend (Oracle Projects Control Account)
FCO,FCO,23/04/2021,11166673,"35,550.00",OCO GLOBAL LTD,Programme Spend (Oracle Projects Control Account)
FCO,FCO,15/04/2021,11158693,"35,420.18",DEPARTMENT FOR CULTURE MEDIA AND SPORT,Customer Refund Account
FCO,FCO,12/04/2021,11153690,"35,420.00",INSTITUTE FOR WAR AND PEACE REPORTING IWPR,Programme Spend (Oracle Projects Control Account)
FCO,FCO,14/04/2021,11156869,"35,394.20",IBIS DAKAR,Recharge Suspense Account (Oracle PA Control Account)
FCO,FCO,06/04/2021,11143809,"35,238.12",FCDO POSTS,Funding Overseas Posts
FCO,FCO,21/04/2021,11163809,"35,233.85",FCDO SERVICES,Air Freight Dip Bags - Freight & Clearance Charges
FCO,FCO,15/04/2021,11158654,"35,187.01",BAE SYSTEMS APPLIED INTELLIGENCE LIMITED,Specialist Contractors
FCO,FCO,26/04/2021,11168054,"35,138.07",CONTRIBUTORY PROVIDENT FUND,Recharge Suspense Account (Oracle PA Control Account)
FCO,FCO,08/04/2021,11148838,"35,005.83",ACCOMMODATION PROVIDER,Multiple Accounts
FCO,FCO,08/04/2021,11148932,"35,005.83",ACCOMMODATION PROVIDER,Rental Payments - residential
FCO,FCO,09/04/2021,11151885,"35,005.83",ACCOMMODATION PROVIDER,Rental Payments - residential
FCO,FCO,21/04/2021,11164259,"34,973.76",INTERSERVE FM LTD,FM Interserve Estate Management Services
FCO,FCO,21/04/2021,11164271,"34,973.76",INTERSERVE FM LTD,FM Interserve Estate Management Services
FCO,FCO,27/04/2021,11170155,"34,929.75",ITAD LTD,Programme Spend (Oracle Projects Control Account)
FCO,FCO,06/04/2021,11143623,"34,780.00",UNIVERSITY OF BIRMINGHAM,Training Courses
FCO,FCO,06/04/2021,11144596,"34,776.00",LAW ENFORCEMENT INTERNATIONAL LTD,Misc Security Payments
FCO,FCO,08/04/2021,11150091,"34,597.12",ACCOMMODATION PROVIDER,Rental Payments - non residential
FCO,FCO,05/04/2021,11142925,"34,585.29",ACCOMMODATION PROVIDER,Rental Payments - residential
FCO,FCO,14/04/2021,11157452,"34,500.00",ERNST AND YOUNG LLP,Programme Spend (Oracle Projects Control Account)
FCO,FCO,16/04/2021,11159814,"34,460.09",IKS MEDIUMI 2015,Programme Spend (Oracle Projects Control Account)
FCO,FCO,26/04/2021,11168307,"34,300.00",LIONS HEAD GLOBAL PARTNERS18 LTD,Programme Spend (Oracle Projects Control Account)
FCO,FCO,05/04/2021,11143137,"34,117.69",AON VIETNAM,Multiple Accounts
FCO,FCO,30/04/2021,11173710,"33,960.29",FCDO SERVICES,Additions-Assets Under Construction (Oracle PA Control Account)
FCO,FCO,09/04/2021,11151204,"33,919.12",EDF ENERGY,Electricity Non-Residential
FCO,FCO,21/04/2021,11164318,"33,678.19",INTERSERVE FM LTD,Residential Property Services
FCO,FCO,21/04/2021,11164244,"33,599.13",INTERSERVE FM LTD,Construction Project more than 10k
FCO,FCO,08/04/2021,11149826,"33,489.45",BUMBAS CONSTRUCTION,Programme Spend (Oracle Projects Control Account)
FCO,FCO,22/04/2021,11165085,"33,456.09",PILGRIMS AFRICA LTD,Local Guards
FCO,FCO,08/04/2021,11149773,"33,431.03",TORCHLIGHT SOLUTIONS LTD,Programme Spend (Oracle Projects Control Account)
FCO,FCO,20/04/2021,11162652,"33,426.20",INNOVATION AND INSIGHT FZE,Programme Spend (Oracle Projects Control Account)
FCO,FCO,06/04/2021,11144500,"33,424.98",NI CO OPERATION OVERSEAS NI CO LTD,Programme Spend (Oracle Projects Control Account)
FCO,FCO,19/04/2021,11161311,"33,421.80",ISS FACILITY SERVICES LTD FCO OP,Multiple Accounts
FCO,FCO,09/04/2021,11151519,"33,317.50",SAYARA INTERNATIONAL,Programme Spend (Oracle Projects Control Account)
FCO,FCO,16/04/2021,11159737,"33,286.60",FCDO SERVICES,Repairs And Refurbishment: Works Residential
FCO,FCO,06/04/2021,11143967,"33,215.03",KOIZA INTERNATIONAL LTD,Multiple Accounts
FCO,FCO,29/04/2021,11172213,"33,207.58",ACCOMMODATION PROVIDER,Multiple Accounts
FCO,FCO,16/04/2021,11159744,"33,052.15",MERITAIN HEALTH,Multiple Accounts
FCO,FCO,30/04/2021,11173799,"33,039.69",ALZAD ALLIBI FOR CATERING SERVICES,Estates Management Services
FCO,FCO,28/04/2021,11171476,"32,765.50",ECA INTERNATIONAL,"HR, Training and Education Consultancy"
FCO,FCO,13/04/2021,11155907,"32,750.00",COMMONWEALTH ENTERPRISE AND INVESTMENT COUNCIL,Programme Spend (Oracle Projects Control Account)
FCO,FCO,16/04/2021,11159957,"32,605.49",Alexander Mann Solutions Limited,Organisation and Change Management Consultancy
FCO,FCO,30/04/2021,11173610,"32,449.32",AL JAZI REAL ESTATE,Rental Payments - residential
FCO,FCO,22/04/2021,11165630,"32,431.41",EU DISINFO LAB,Programme Spend (Oracle Projects Control Account)
FCO,FCO,27/04/2021,11169965,"32,372.92",THE THOMSON FOUNDATION,Programme Spend (Oracle Projects Control Account)
FCO,FCO,12/04/2021,11153984,"32,329.79",ADB COMPENSA,Multiple Accounts
FCO,FCO,12/04/2021,11153510,"32,200.10",ACCOMMODATION PROVIDER,Multiple Accounts
FCO,FCO,06/04/2021,11144497,"32,145.00",FLYFORM LTD,IT Management and Change
FCO,FCO,20/04/2021,11162302,"32,139.36",INSTITUTE FOR SECURITY STUDIES ISS,Programme Spend (Oracle Projects Control Account)
FCO,FCO,06/04/2021,11144628,"32,115.84",FLYFORM LTD,End User Software and Hardware
FCO,FCO,20/04/2021,11162611,"32,068.66",INNOVATION AND INSIGHT FZE,Programme Spend (Oracle Projects Control Account)
FCO,FCO,27/04/2021,11169773,"32,030.54",AFIP,Multiple Accounts
FCO,FCO,06/04/2021,11143801,"32,000.00",FCDO POSTS,Funding Overseas Posts
FCO,FCO,22/04/2021,11165597,"31,915.00",THE AIRE CENTRE,Programme Spend (Oracle Projects Control Account)
FCO,FCO,26/04/2021,11168290,"31,790.72",KPMG FIDUCIAIRE,Multiple Accounts
FCO,FCO,22/04/2021,11165345,"31,768.09",ACCOMMODATION PROVIDER,Rental Payments - residential
FCO,FCO,06/04/2021,11144598,"31,708.79",COMPUTACENTER UK LTD,Additions-Assets Under Construction (Oracle PA Control Account)
FCO,FCO,12/04/2021,11153509,"31,603.80",ACCOMMODATION PROVIDER,Rental Payments - residential
FCO,FCO,23/04/2021,11166919,"31,473.44",ALZAD ALLIBI FOR CATERING SERVICES,Estates Management Services
FCO,FCO,26/04/2021,11167999,"31,358.74",IBTC PENSION MANAGERS LTD,Multiple Accounts
FCO,FCO,19/04/2021,11161295,"31,357.39",ISS FACILITY SERVICES LTD FCO OP,Multiple Accounts
FCO,FCO,09/04/2021,11151113,"31,317.50",AUGMENTAS GROUP LTD,Programme Spend (Oracle Projects Control Account)
FCO,FCO,21/04/2021,11163456,"31,292.64",CENTRAL PROVIDENT FUND BOARD,Multiple Accounts
FCO,FCO,23/04/2021,11166596,"31,261.82",PDP PROJECTS LIMITED,Unscheduled repairs to building infrastructure
FCO,FCO,16/04/2021,11160129,"31,226.36",RAMBOLL UK LTD,Additions-Assets Under Construction (Oracle PA Control Account)
FCO,FCO,16/04/2021,11159707,"31,155.63",TBG SUPPORT SERVICES,Property Maintenance Overseas Non Residential
FCO,FCO,21/04/2021,11164089,"31,123.91",INTERSERVE FM LTD,Multiple Accounts
FCO,FCO,06/04/2021,11143582,"31,091.03",TORCHLIGHT SOLUTIONS LTD,Programme Spend (Oracle Projects Control Account)
FCO,FCO,20/04/2021,11162482,"31,003.62",SCHOOL,Schooling for Children at Post
FCO,FCO,20/04/2021,11162486,"31,003.62",SCHOOL,Schooling for Children at Post
FCO,FCO,20/04/2021,11162492,"31,003.62",SCHOOL,Schooling for Children at Post
FCO,FCO,21/04/2021,11164363,"31,000.00",COMMONWEALTH SECRETARIAT,Programme Spend (Oracle Projects Control Account)
FCO,FCO,09/04/2021,11151240,"30,630.11",ACCOMMODATION PROVIDER,Programme Spend (Oracle Projects Control Account)
FCO,FCO,09/04/2021,11151309,"30,630.11",ACCOMMODATION PROVIDER,Rental Payments - residential
FCO,FCO,05/04/2021,11143065,"30,448.29",DEJURE FOUNDATION,Programme Spend (Oracle Projects Control Account)
FCO,FCO,09/04/2021,11150598,"30,355.03",FINE GENERAL SERVICE SHARE COMPNAY,Local Guards
FCO,FCO,09/04/2021,11150600,"30,355.03",FINE GENERAL SERVICE SHARE COMPNAY,Local Guards
FCO,FCO,30/04/2021,11173972,"30,348.47",PALLADIUM,Programme Spend (Oracle Projects Control Account)
FCO,FCO,09/04/2021,11151054,"30,316.45",CABINET OFFICE,Programme Spend (Oracle Projects Control Account)
FCO,FCO,06/04/2021,11143825,"30,284.21",FCDO POSTS,Funding Overseas Posts
FCO,FCO,14/04/2021,11157559,"30,238.48",HOTELLINE FOR TOURISTIC INVESTMENT LTD,Catering Services
FCO,FCO,29/04/2021,11172789,"30,211.12",UCL CONSULTANTS LIMITED,Specialist Training (Devolved)
FCO,FCO,23/04/2021,11166958,"30,206.94",INTERSERVE FM LTD,Additions-Assets Under Construction (Oracle PA Control Account)
FCO,FCO,20/04/2021,11162351,"30,171.60",FCDO SERVICES,IT Support
FCO,FCO,19/04/2021,11162205,"30,066.74",SCHOOL,Schooling for Children at Post
FCO,FCO,06/04/2021,11143846,"30,012.89",FCDO POSTS,Funding Overseas Posts
FCO,FCO,22/04/2021,11165901,"30,000.00",Mr Kyaw Z Minn,Misc Expenditure (only to be used if no other suitable account)
FCO,FCO,23/04/2021,11166750,"30,000.00",OVE ARUP & PARTNERS LTD,Inward visits to the UK and UK Conferences
FCO,FCO,06/04/2021,11143732,"29,935.00",FCDO POSTS,Funding Overseas Posts
FCO,FCO,29/04/2021,11172729,"29,818.51",PEACEFUL CHANGE INITIATIVE,Programme Spend (Oracle Projects Control Account)
FCO,FCO,09/04/2021,11150765,"29,814.91",ACCOMMODATION PROVIDER,Multiple Accounts
FCO,FCO,15/04/2021,11158472,"29,702.97",UNICEF GLOBAL SHARED SERVICE CENTRE,Programme Spend (Oracle Projects Control Account)
FCO,FCO,15/04/2021,11158770,"29,592.88",SCHOOL,Schooling for Children at Post
FCO,FCO,26/04/2021,11168344,"29,432.72",KPMG FIDUCIAIRE,Multiple Accounts
FCO,FCO,26/04/2021,11168131,"29,426.90",TETRA TECH MANAGEMENT SERVICES LIMITED,Multiple Accounts
FCO,FCO,19/04/2021,11161421,"29,400.00",SERCO LIMITED,Programme Spend (Oracle Projects Control Account)
FCO,FCO,26/04/2021,11168095,"29,374.00",COMPUTACENTER UK LTD,IT/IS Consultancy
FCO,FCO,10/04/2021,11152755,"29,350.90",ACCOMMODATION PROVIDER,Multiple Accounts
FCO,FCO,20/04/2021,11162713,"29,341.63",MOD MINISTRY OF DEFENCE,Multiple Accounts
FCO,FCO,20/04/2021,11162837,"29,319.50",PROFESSIONAL LANGUAGE SOLUTIONS,Language Tuition: Essential
FCO,FCO,06/04/2021,11144476,"29,288.83",KAINOS SOFTWARE LTD,Additions-Assets Under Construction (Oracle PA Control Account)
FCO,FCO,30/04/2021,11173539,"29,286.43",SOCIAL SECURITY CORPORATION,Multiple Accounts
FCO,FCO,19/04/2021,11162203,"29,233.90",SCHOOL,Schooling for Children at Post
FCO,FCO,26/04/2021,11168204,"29,203.47",TETRA TECH MANAGEMENT SERVICES LIMITED,Repairs And Refurbishment: Works Residential
FCO,FCO,19/04/2021,11161326,"29,184.69",ISS FACILITY SERVICES LTD FCO OP,Property Maintenance Overseas Non Residential
FCO,FCO,14/04/2021,11157563,"29,135.06",AFGHAN KNOWLEDGE SOLUTION,Programme Spend (Oracle Projects Control Account)
FCO,FCO,08/04/2021,11150077,"29,003.68",MEDYA ARASTIRMALARI DERNEGI,Programme Spend (Oracle Projects Control Account)
FCO,FCO,26/04/2021,11168213,"28,990.05",GASSIN EMPREENDIMENTOS E PARTICIPAC,Multiple Accounts
FCO,FCO,23/04/2021,11166921,"28,904.38",ALZAD ALLIBI FOR CATERING SERVICES,Estates Management Services
FCO,FCO,08/04/2021,11149838,"28,893.82",Pace Construction,Programme Spend (Oracle Projects Control Account)
FCO,FCO,14/04/2021,11157340,"28,809.27",KENT COUNTY CONSTABULARY,Programme Spend (Oracle Projects Control Account)
FCO,FCO,06/04/2021,11144514,"28,806.60",FCDO SERVICES,IT Management and Change
FCO,FCO,19/04/2021,11161140,"28,758.22",G4S SECURITY SERVICES,Multiple Accounts
FCO,FCO,13/04/2021,11155192,"28,720.00",CABINET OFFICE,Programme Spend (Oracle Projects Control Account)
FCO,FCO,27/04/2021,11169421,"28,644.44",FCDO SERVICES,Air Freight Dip Bags - Freight & Clearance Charges
FCO,FCO,14/04/2021,11156842,"28,593.02",SAFEGUARD ALARMS PVT LTD,Local Guards
FCO,FCO,06/04/2021,11144073,"28,507.50",PRICEWATERHOUSECOOPERS LLP,Programme Spend (Oracle Projects Control Account)
FCO,FCO,12/04/2021,11153566,"28,473.08",PAGUE BOLETO LTDA,Rates Taxes Residential
FCO,FCO,29/04/2021,11172372,"28,468.19",MITEL NETWORKS LTD,IT Networking
FCO,FCO,23/04/2021,11166644,"28,274.73",IOM INTERNATIONAL ORG FOR MIGRATION,Programme Spend (Oracle Projects Control Account)
FCO,FCO,26/04/2021,11168303,"28,250.00",LIONS HEAD GLOBAL PARTNERS18 LTD,Programme Spend (Oracle Projects Control Account)
FCO,FCO,30/04/2021,11173665,"28,200.00",IMPERIAL COLLEGE LONDON,Programme Spend (Oracle Projects Control Account)
FCO,FCO,01/04/2021,11159747,"28,119.66",THE ROYAL BANK OF SCOTLAND,Travel Package Advance Overseas Posting (Credit Card Payments Only)
FCO,FCO,21/04/2021,11163461,"28,085.98",SOCIAL INSURANCE ORGANISATION,Multiple Accounts
FCO,FCO,21/04/2021,11164139,"28,036.54",INTERSERVE FM LTD,Construction Project more than 10k
FCO,FCO,21/04/2021,11164657,"27,944.22",DLA PIPER UK LLP,Inward visits to the UK and UK Conferences
FCO,FCO,06/04/2021,11144856,"27,809.08",FCDO SERVICES,Recharge Suspense Account (Oracle PA Control Account)
FCO,FCO,08/04/2021,11148907,"27,797.08",INTERNATIONAL CAPITAL TRADING,Rental Payments - residential
FCO,FCO,22/04/2021,11165626,"27,709.00",ECORYS UK LTD,Programme Spend (Oracle Projects Control Account)
FCO,FCO,23/04/2021,11166863,"27,681.22",AVARN SECURITY OY,Local Guards
FCO,FCO,13/04/2021,11155977,"27,625.29",ACCOMMODATION PROVIDER,Programme Spend (Oracle Projects Control Account)
FCO,FCO,29/04/2021,11172293,"27,449.78",ITAD LTD,Programme Spend (Oracle Projects Control Account)
FCO,FCO,29/04/2021,11172168,"27,354.78",UNDP,Multiple Accounts
FCO,FCO,07/04/2021,11148021,"27,312.83",ADYAN FOUNDATION,Programme Spend (Oracle Projects Control Account)
FCO,FCO,14/04/2021,11157633,"27,282.79",VISUAL SYSTEMS GROUP INC,Additions-Assets Under Construction (Oracle PA Control Account)
FCO,FCO,21/04/2021,11164240,"27,275.06",INTERSERVE FM LTD,Construction Project more than 10k
FCO,FCO,20/04/2021,11162330,"27,129.52",Q PARK LIMITED,Rental Payments - residential
FCO,FCO,06/04/2021,11143672,"27,091.60",FCDO POSTS,Funding Overseas Posts
FCO,FCO,20/04/2021,11162467,"27,073.93",ACCOMMODATION PROVIDER,Rental Payments - residential
FCO,FCO,21/04/2021,11164070,"27,021.28",INTERSERVE FM LTD,Multiple Accounts
FCO,FCO,22/04/2021,11165240,"27,008.00",CENGRS GEOTECHNICA PVT LTD,Construction Project more than 10k
FCO,FCO,30/04/2021,11173538,"26,983.66",ACCOMMODATION PROVIDER,Multiple Accounts
FCO,FCO,29/04/2021,11172776,"26,948.70",HEALIX INTERNATIONAL LTD,Hospital/Specialist Treatment
FCO,FCO,06/04/2021,11144570,"26,913.00",TORCHLIGHT SOLUTIONS LTD,Recharge Suspense Account (Oracle PA Control Account)
FCO,FCO,06/04/2021,11143557,"26,834.00",CABINET OFFICE,Programme Spend (Oracle Projects Control Account)
FCO,FCO,06/04/2021,11144459,"26,830.18",FCDO SERVICES,Additions-Assets Under Construction (Oracle PA Control Account)
FCO,FCO,08/04/2021,11149774,"26,819.62",NORTH EAST ATLANTIC FISHERIES COMMN,Protocol - General VAT Refunds to Other Organisations
FCO,FCO,06/04/2021,11143840,"26,743.43",FCDO POSTS,Funding Overseas Posts
FCO,FCO,05/04/2021,11142914,"26,658.00",INTERNATIONAL JUSTICE MISSION UK,Recharge Suspense Account (Oracle PA Control Account)
FCO,FCO,26/04/2021,11168359,"26,640.84",KPMG FIDUCIAIRE,Multiple Accounts
FCO,FCO,22/04/2021,11165677,"26,375.07",IESCO,Multiple Accounts
FCO,FCO,29/04/2021,11172216,"26,357.59",ETIHAD TOWERS FOR REAL ESTATE,Multiple Accounts
FCO,FCO,08/04/2021,11149872,"26,344.15",AETNA,Multiple Accounts
FCO,FCO,16/04/2021,11159500,"26,254.38",CONSOLATEUR INNOCENT,Rental Payments - residential
FCO,FCO,05/04/2021,11143144,"26,250.00",INTERNATIONAL ORGANISATION FOR MIGRATION,Programme Spend (Oracle Projects Control Account)
FCO,FCO,12/04/2021,11153505,"26,237.12",ACCOMMODATION PROVIDER,Rental Payments - residential
FCO,FCO,08/04/2021,11149353,"26,146.00",BAE SYSTEMS APPLIED INTELLIGENCE LIMITED,IT Management and Change
FCO,FCO,15/04/2021,11158640,"26,146.00",BAE SYSTEMS APPLIED INTELLIGENCE LIMITED,IT/IS Consultancy
FCO,FCO,07/04/2021,11147715,"25,959.16",SADO EHITUS OU,Rental Payments - residential
FCO,FCO,21/04/2021,11164058,"25,951.94",INTERSERVE FM LTD,Multiple Accounts
FCO,FCO,09/04/2021,11151592,"25,929.84",SCHOOL,Schooling for Children at Post
FCO,FCO,12/04/2021,11153496,"25,873.17",FORMATS PROJECTS SERVICES LTD,Recharge Suspense Account (Oracle PA Control Account)
FCO,FCO,06/04/2021,11143831,"25,858.82",FCDO POSTS,Funding Overseas Posts
FCO,FCO,29/04/2021,11172200,"25,811.58",ACCOMMODATION PROVIDER,Rental Payments - residential
FCO,FCO,19/04/2021,11162206,"25,801.30",SCHOOL,Schooling for Children at Post
FCO,FCO,06/04/2021,11144536,"25,774.19",COMPUTACENTER UK LTD,IT Management and Change
FCO,FCO,13/04/2021,11156076,"25,768.67",UMOJA HOUSE JMC,Property Maintenance Overseas Non Residential
FCO,FCO,15/04/2021,11158878,"25,741.75",PICKFORDS MOVE MANAGEMENT LTD,Heavy Baggage
FCO,FCO,08/04/2021,11148926,"25,738.86",AGENCE IMMOBILIRE SONINKE KOUNDA,Multiple Accounts
FCO,FCO,06/04/2021,11143900,"25,658.57",FCDO POSTS,Funding Overseas Posts
FCO,FCO,15/04/2021,11158638,"25,658.57",FCDO POSTS,Funding Overseas Posts
FCO,FCO,06/04/2021,11143903,"25,559.63",MANUEL DANILO GONZALEZ CABALLERO,Programme Spend (Oracle Projects Control Account)
FCO,FCO,06/04/2021,11143682,"25,525.09",FCDO POSTS,Funding Overseas Posts
FCO,FCO,22/04/2021,11165290,"25,488.38",AXIOM INTERNATIONAL LTD,Programme Spend (Oracle Projects Control Account)
FCO,FCO,19/04/2021,11161491,"25,440.53",TETRA TECH INTERNATIONAL DEVELOPMENT,Programme Spend (Oracle Projects Control Account)
FCO,FCO,09/04/2021,11151343,"25,378.73",ACCOMMODATION PROVIDER,Rental Payments - residential
FCO,FCO,23/04/2021,11166716,"25,375.58",BVI INTERNATIONAL ARBITRATION CENTRE,Programme Spend (Oracle Projects Control Account)
FCO,FCO,06/04/2021,11144226,"25,221.98",OECD,Programme Spend (Oracle Projects Control Account)
FCO,FCO,21/04/2021,11164596,"25,148.34",ONE HUNDRED TOWERS,Multiple Accounts
FCO,FCO,06/04/2021,11144532,"25,074.00",DELOITTE AND TOUCHE LLP,Programme Spend (Oracle Projects Control Account)
FCO,FCO,21/04/2021,11164528,"25,072.93",ZARKA ZEBA LOGISTIC SERVICES,Misc Security Payments
FCO,FCO,06/04/2021,11144323,"25,024.37",SOT 161,Local Guards
FCO,FCO,22/04/2021,11165332,"-25,015.14",JAT OTHER DEBTORS,Rent and Service Charges
FCO,FCO,23/04/2021,11166913,"-25,658.57",ASOCIATION BABELIA,Programme Spend (Oracle Projects Control Account)
FCO,FCO,07/04/2021,11146932,"-26,125.27",CROWN AGENTS,Multiple Accounts
FCO,FCO,08/04/2021,11149039,"-26,241.60",BEHAVIOURAL INSIGHTS TEAM,Programme Spend (Oracle Projects Control Account)
FCO,FCO,28/04/2021,11171067,"-33,552.48",TETRA TECH MANAGEMENT SERVICES LIMITED,Additions-Assets Under Construction (Oracle PA Control Account)
FCO,FCO,06/04/2021,11144335,"-34,242.58",FCDO SERVICES,Repairs And Refurbishment: Works Residential
FCO,FCO,05/04/2021,11142802,"-35,572.01",JAT OTHER DEBTORS,Rent and Service Charges
FCO,FCO,07/04/2021,11146967,"-39,260.12",TENAX LTD,"Purchase of Furniture, Fittings and Domestic Appliances"
FCO,FCO,01/04/2021,11121502,"-42,400.00",ASIAN TRADE CENTRE,Programme Spend (Oracle Projects Control Account)
FCO,FCO,09/04/2021,11151395,"-45,000.00",PRICEWATERHOUSECOOPERS LLP,Programme Spend (Oracle Projects Control Account)
FCO,FCO,26/04/2021,11168072,"-47,725.22",CARBON TRUST ADVISORY LTD,Programme Spend (Oracle Projects Control Account)
FCO,FCO,16/04/2021,11159706,"-51,000.00",RAMBOLL UK LTD,Repairs And Refurbishment: Works Residential
FCO,FCO,08/04/2021,11127963,"-51,302.23",Nanny Cay Hotel and Marina,Programme Spend (Oracle Projects Control Account)
FCO,FCO,30/04/2021,11173723,"-53,172.00",FCDO SERVICES,Additions-Assets Under Construction (Oracle PA Control Account)
FCO,FCO,06/04/2021,11143553,"-67,625.00",ORE CATAPULT LTD,Multiple Accounts
FCO,FCO,01/04/2021,11141401,"-70,202.40",TEAM LEYLAND INTERNATIONAL LTD,Additions-Assets Under Construction (Oracle PA Control Account)
FCO,FCO,26/04/2021,11168087,"-78,696.20",BAE SYSTEMS APPLIED INTELLIGENCE LIMITED,IT Management and Change
FCO,FCO,23/04/2021,11166450,"-81,044.00",DIPLOMATIC MISSION SUPPLIES LTD,"Purchase of Furniture, Fittings and Domestic Appliances"
FCO,FCO,28/04/2021,11171060,"-83,452.80",BAE SYSTEMS APPLIED INTELLIGENCE LIMITED,IT Management and Change
FCO,FCO,29/04/2021,11172915,"-94,807.47",OAS ORGANIZATION AMERICAN STATES,Programme Spend (Oracle Projects Control Account)
FCO,FCO,01/04/2021,11133610,"-118,827.84",CAYMAN ISLANDS GOVERNMENT,Programme Spend (Oracle Projects Control Account)
FCO,FCO,09/04/2021,11151247,"-135,309.00",METROPOLITAN POLICE AUTHORITY,Programme Spend (Oracle Projects Control Account)
FCO,FCO,01/04/2021,11136679,"-200,620.00",MINISTRY OF DEFENCE,Additions-Assets Under Construction (Oracle PA Control Account)
